Department family,Entity,Date,Expense type,Expense area,Supplier,Transaction number, Amount ,Description,
MOJ,LAA,01/10/18,Civil Representation,LEGAL AID FUND,DEREK A SWEETING,1557820:149765178,-28621.8, Legal Aid Civil Representation ,
MOJ,LAA,01/10/18,Civil Representation,LEGAL AID FUND,RAMSDENS SOLICITORS LLP,1547367:3000002533780009,-36206.39, Legal Aid Civil Representation ,
MOJ,LAA,02/10/18,EXP - RENTALS UNDER NON-PFI OPERATING LEASES - BUILDINGS,Property Costs - Nottingham,KNIGHT FRANK LLP,178830,23274, Property Costs ,
MOJ,LAA,02/10/18,EXP - PURCHASE OF GOODS/SERVICES - ACCOMMODATION & BLDNG MANAGEMENT - Property Service Charges,Property Costs - Nottingham,KNIGHT FRANK LLP,178830,12171.68, Property Costs ,
MOJ,LAA,03/10/18,Higher Crime,LEGAL AID FUND,ABBEY LAW SOLICITORS,1558688:150535307,89975.11, Legal Aid Higher Crime ,
MOJ,LAA,03/10/18,Civil Representation,LEGAL AID FUND,AIDAN J W VINE,1557988:3000001383280029,27075.6, Legal Aid Civil Representation ,
MOJ,LAA,03/10/18,Higher Crime,LEGAL AID FUND,ALSTERS KELLEY LLP,1558658:150535537,27154.38, Legal Aid Higher Crime ,
MOJ,LAA,03/10/18,Civil Representation,LEGAL AID FUND,AMANDA J HOWARD,1559624:3000002839260064,30869, Legal Aid Civil Representation ,
MOJ,LAA,03/10/18,Higher Crime,LEGAL AID FUND,BAL DHALIWAL SOLICITORS,1561580:150536012,49144.5, Legal Aid Higher Crime ,
MOJ,LAA,03/10/18,Higher Crime,LEGAL AID FUND,BAXTER BROWN MCARTHUR SOLICITORS,1558611:150535337,32628, Legal Aid Higher Crime ,
MOJ,LAA,03/10/18,Civil Representation,LEGAL AID FUND,BEN MANSFIELD,1560656:3000002321250011,27190.42, Legal Aid Civil Representation ,
MOJ,LAA,03/10/18,Higher Crime,LEGAL AID FUND,BERKELEY SQUARE SOLICITORS LTD,1559181:150536129,105857.75, Legal Aid Higher Crime ,
MOJ,LAA,03/10/18,Higher Crime,LEGAL AID FUND,BRUNSKILL LTD,1559344:150520224,49729.07, Legal Aid Higher Crime ,
MOJ,LAA,03/10/18,Higher Crime,LEGAL AID FUND,BUXTON RYAN & CO,1561607:150543435,27563.58, Legal Aid Higher Crime ,
MOJ,LAA,03/10/18,Higher Crime,LEGAL AID FUND,CARTER OSBORNE LTD,1561061:150536603,30194.71, Legal Aid Higher Crime ,
MOJ,LAA,03/10/18,Civil Representation,LEGAL AID FUND,CONSTANCE M HUGHES,1560910:150076321,-27075.6, Legal Aid Civil Representation ,
MOJ,LAA,03/10/18,Civil Representation,LEGAL AID FUND,COZENS-HARDY LLP,1560999:3000002601110009,29829.48, Legal Aid Civil Representation ,
MOJ,LAA,03/10/18,Higher Crime,LEGAL AID FUND,DAVID J BARNES,1558528:150520550,28664.88, Legal Aid Higher Crime ,
MOJ,LAA,03/10/18,Higher Crime,LEGAL AID FUND,DAVID P SPENS QC,1560882:150521068,29936.3, Legal Aid Higher Crime ,
MOJ,LAA,03/10/18,Higher Crime,LEGAL AID FUND,DPP LAW LTD,1558987:150536638,95707.01, Legal Aid Higher Crime ,
MOJ,LAA,03/10/18,Higher Crime,LEGAL AID FUND,DPP LAW LTD,1558987:150519988,62644.35, Legal Aid Higher Crime ,
MOJ,LAA,03/10/18,Higher Crime,LEGAL AID FUND,DPP LAW LTD,1558089:150528376,49483.86, Legal Aid Higher Crime ,
MOJ,LAA,03/10/18,Higher Crime,LEGAL AID FUND,DPP LAW LTD,1558987:150542516,41092.78, Legal Aid Higher Crime ,
MOJ,LAA,03/10/18,Civil Representation,LEGAL AID FUND,DUNCAN LEWIS SOLICITORS  LTD,1559333:3000001133220041,39905.74, Legal Aid Civil Representation ,
MOJ,LAA,03/10/18,Civil Representation,LEGAL AID FUND,DUNCAN LEWIS SOLICITORS  LTD,1558941:3000001582720020,27318.43, Legal Aid Civil Representation ,
MOJ,LAA,03/10/18,Higher Crime,LEGAL AID FUND,EBR ATTRIDGE LLP,1558193:150520454,34049.56, Legal Aid Higher Crime ,
MOJ,LAA,03/10/18,Higher Crime,LEGAL AID FUND,ELROY G CLAXTON,1561203:150520674,34896.36, Legal Aid Higher Crime ,
MOJ,LAA,03/10/18,Higher Crime,LEGAL AID FUND,ENNON & CO LTD,1558625:150536151,107970.13, Legal Aid Higher Crime ,
MOJ,LAA,03/10/18,Higher Crime,LEGAL AID FUND,FARNSWORTH MORGAN BAKHAT,1558627:150529216,69814.56, Legal Aid Higher Crime ,
MOJ,LAA,03/10/18,Higher Crime,LEGAL AID FUND,FLAVIA KENYON,1558231:150520821,34655.15, Legal Aid Higher Crime ,
MOJ,LAA,03/10/18,Higher Crime,LEGAL AID FUND,FORBES SOLICITORS,1561597:150528073,60310.56, Legal Aid Higher Crime ,
MOJ,LAA,03/10/18,Civil Representation,LEGAL AID FUND,GOODMAN RAY SOLICITORS LLP,1558398:3000001896400055RC,-49350.55, Legal Aid Civil Representation ,
MOJ,LAA,03/10/18,Higher Crime,LEGAL AID FUND,GRAHAME STOWE BATESON,1558174:150520410,35478.14, Legal Aid Higher Crime ,
MOJ,LAA,03/10/18,Higher Crime,LEGAL AID FUND,GREGORY UNWIN,1558569:150552805,26204.23, Legal Aid Higher Crime ,
MOJ,LAA,03/10/18,Legal Help,LEGAL AID FUND,GUILE NICHOLAS-INC DONALD GALBRAITH & CO,1558672:150533641,60000, Legal Aid Legal Help ,
MOJ,LAA,03/10/18,Higher Crime,LEGAL AID FUND,GULLANDS,1558717:150527967,81119.27, Legal Aid Higher Crime ,
MOJ,LAA,03/10/18,Higher Crime,LEGAL AID FUND,GWB HARTHILLS LLP,1558362:150535786,31955.92, Legal Aid Higher Crime ,
MOJ,LAA,03/10/18,Higher Crime,LEGAL AID FUND,H P GOWER SOLICITORS,1559405:150536500,30968.94, Legal Aid Higher Crime ,
MOJ,LAA,03/10/18,Higher Crime,LEGAL AID FUND,HARRIS SOLICITORS LTD,1559357:150529021,46440.85, Legal Aid Higher Crime ,
MOJ,LAA,03/10/18,Civil Representation,LEGAL AID FUND,HELEN F C ARTHUR,1557962:3000002378010022,29851.2, Legal Aid Civil Representation ,
MOJ,LAA,03/10/18,Higher Crime,LEGAL AID FUND,HERMANS,1558111:150528192,79670.9, Legal Aid Higher Crime ,
MOJ,LAA,03/10/18,Higher Crime,LEGAL AID FUND,HOWELL HYLTON LTD,1561343:150535285,39730.96, Legal Aid Higher Crime ,
MOJ,LAA,03/10/18,Higher Crime,LEGAL AID FUND,HURLEYS SOLICITORS LTD,1559439:150529109,85855.08, Legal Aid Higher Crime ,
MOJ,LAA,03/10/18,Civil Representation,LEGAL AID FUND,IRWIN MITCHELL LLP,1560711:150378025,25537.17, Legal Aid Civil Representation ,
MOJ,LAA,03/10/18,Higher Crime,LEGAL AID FUND,JACKSON LEES GROUP LTD,1560296:150520402,68256.14, Legal Aid Higher Crime ,
MOJ,LAA,03/10/18,Civil Representation,LEGAL AID FUND,JANET E REANEY,1558305:3000003263200019,28609.2, Legal Aid Civil Representation ,
MOJ,LAA,03/10/18,Civil Representation,LEGAL AID FUND,JEFFERIES (ESSEX) LLP,1561065:3000002896750012,36499.63, Legal Aid Civil Representation ,
MOJ,LAA,03/10/18,Civil Representation,LEGAL AID FUND,JMW SOLICITORS LLP,1560172:150488588,56085.93, Legal Aid Civil Representation ,
MOJ,LAA,03/10/18,Civil Representation,LEGAL AID FUND,JMW SOLICITORS LLP,1560172:150488659,-63361.93, Legal Aid Civil Representation ,
MOJ,LAA,03/10/18,Civil Representation,LEGAL AID FUND,JOHN A HAYES QC,1561472:3000002633260010,64864.8, Legal Aid Civil Representation ,
MOJ,LAA,03/10/18,Civil Representation,LEGAL AID FUND,JOHN A HAYES QC,1561472:3000002633260009,48648.6, Legal Aid Civil Representation ,
MOJ,LAA,03/10/18,Civil Representation,LEGAL AID FUND,JOHN A PITT VATER,1557989:150269879,64864.8, Legal Aid Civil Representation ,
MOJ,LAA,03/10/18,Civil Representation,LEGAL AID FUND,JOHN A PITT VATER,1557989:3000002806130019,42541.2, Legal Aid Civil Representation ,
MOJ,LAA,03/10/18,Civil Representation,LEGAL AID FUND,JOHN A PITT VATER,1557989:150276718,-29091.53, Legal Aid Civil Representation ,
MOJ,LAA,03/10/18,Civil Representation,LEGAL AID FUND,JOHN A PITT VATER,1557989:3000002328580001RC,-33307.2, Legal Aid Civil Representation ,
MOJ,LAA,03/10/18,Civil Representation,LEGAL AID FUND,JOHN MYERS,1561531:3000002152440010,35548.2, Legal Aid Civil Representation ,
MOJ,LAA,03/10/18,Higher Crime,LEGAL AID FUND,JULIAN A WINSHIP,1561185:150536065,39804.12, Legal Aid Higher Crime ,
MOJ,LAA,03/10/18,Civil Representation,LEGAL AID FUND,KAREN KABWERU-NAMULEMU,1560944:3000002615930019,30304.61, Legal Aid Civil Representation ,
MOJ,LAA,03/10/18,Higher Crime,LEGAL AID FUND,KEIR B MONTEITH,1560860:150520135,26227.86, Legal Aid Higher Crime ,
MOJ,LAA,03/10/18,Higher Crime,LEGAL AID FUND,KRISTINA HARRISON SOLICITORS,1559790:150535979,107970.13, Legal Aid Higher Crime ,
MOJ,LAA,03/10/18,Higher Crime,LEGAL AID FUND,KRISTINA HARRISON SOLICITORS,1559790:150535756,89975.11, Legal Aid Higher Crime ,
MOJ,LAA,03/10/18,Higher Crime,LEGAL AID FUND,L P EVANS SOLICITORS,1559321:150542269,27524.91, Legal Aid Higher Crime ,
MOJ,LAA,03/10/18,Higher Crime,LEGAL AID FUND,LIBERTY SOLICITORS.,1558995:150553399,81347.36, Legal Aid Higher Crime ,
MOJ,LAA,03/10/18,Civil Representation,LEGAL AID FUND,MAKIN DIXON SOLICITORS LTD,1557857:3000003646510008,25094.4, Legal Aid Civil Representation ,
MOJ,LAA,03/10/18,Higher Crime,LEGAL AID FUND,MANN & CO SOLICITORS LTD,1561630:150542778,89975.11, Legal Aid Higher Crime ,
MOJ,LAA,03/10/18,Higher Crime,LEGAL AID FUND,MARTYN HEWETT,1558705:150535312,42683.95, Legal Aid Higher Crime ,
MOJ,LAA,03/10/18,Higher Crime,LEGAL AID FUND,MAYFAIR SOLICITORS,1559134:150528663,55904, Legal Aid Higher Crime ,
MOJ,LAA,03/10/18,Higher Crime,LEGAL AID FUND,METRO LAW SOLICITORS LTD,1558148:150528930,85531.4, Legal Aid Higher Crime ,
MOJ,LAA,03/10/18,Higher Crime,LEGAL AID FUND,MICHAEL F R HOLLAND QC,1559766:150527733,59681.24, Legal Aid Higher Crime ,
MOJ,LAA,03/10/18,Higher Crime,LEGAL AID FUND,MICHAEL IWAN DAVIES,1558299:150520509,35488.56, Legal Aid Higher Crime ,
MOJ,LAA,03/10/18,Civil Representation,LEGAL AID FUND,MICHELMORES,1559088:6049674,58607.21, Legal Aid Civil Representation ,
MOJ,LAA,03/10/18,Higher Crime,LEGAL AID FUND,MITCHELLS SOLICITORS LLP,1558680:150552592,45134.46, Legal Aid Higher Crime ,
MOJ,LAA,03/10/18,Higher Crime,LEGAL AID FUND,MOHAMMAD M HOSSAIN,1558290:150552854,38193.34, Legal Aid Higher Crime ,
MOJ,LAA,03/10/18,Higher Crime,LEGAL AID FUND,NIGEL SANGSTER QC,1560055:150533139,143680.01, Legal Aid Higher Crime ,
MOJ,LAA,03/10/18,Higher Crime,LEGAL AID FUND,ONE LEGAL SERVICES LTD,1559217:150543389,26980.17, Legal Aid Higher Crime ,
MOJ,LAA,03/10/18,Legal Help,LEGAL AID FUND,PARAGON LAW LTD,1558403:150532976,35000, Legal Aid Legal Help ,
MOJ,LAA,03/10/18,Higher Crime,LEGAL AID FUND,PATRICK J B MCGRORY QC,1559946:150519969,47640.92, Legal Aid Higher Crime ,
MOJ,LAA,03/10/18,Civil Representation,LEGAL AID FUND,PEARSONS,1561294:150192654,40780.35, Legal Aid Civil Representation ,
MOJ,LAA,03/10/18,Civil Representation,LEGAL AID FUND,PENELOPE A M HOWE,1558872:3000003975860005,48319.2, Legal Aid Civil Representation ,
MOJ,LAA,03/10/18,Higher Crime,LEGAL AID FUND,PETER J DOYLE QC,1560057:150520604,42004.28, Legal Aid Higher Crime ,
MOJ,LAA,03/10/18,Higher Crime,LEGAL AID FUND,QUINN MELVILLE,1558087:150520044,29664.55, Legal Aid Higher Crime ,
MOJ,LAA,03/10/18,Higher Crime,LEGAL AID FUND,RAHMAN RAVELLI SOLICITORS LTD,1561645:150521137,85427.66, Legal Aid Higher Crime ,
MOJ,LAA,03/10/18,Civil Representation,LEGAL AID FUND,RAMSDENS SOLICITORS LLP,1560284:3000002533780009,36206.39, Legal Aid Civil Representation ,
MOJ,LAA,03/10/18,Higher Crime,LEGAL AID FUND,RAYMOND C SMITH,1558506:150520292,30571.92, Legal Aid Higher Crime ,
MOJ,LAA,03/10/18,Higher Crime,LEGAL AID FUND,REEDS SOLICITORS LTD,1559154:150520764,62612.66, Legal Aid Higher Crime ,
MOJ,LAA,03/10/18,Higher Crime,LEGAL AID FUND,REEDS SOLICITORS LTD,1561300:150535321,62006.1, Legal Aid Higher Crime ,
MOJ,LAA,03/10/18,Higher Crime,LEGAL AID FUND,RH LAW LLP,1560168:150535677,35597.46, Legal Aid Higher Crime ,
MOJ,LAA,03/10/18,Higher Crime,LEGAL AID FUND,RICHARD HASWELL SOLICITORS LTD,1560472:150529052,85735.97, Legal Aid Higher Crime ,
MOJ,LAA,03/10/18,Civil Representation,LEGAL AID FUND,RICHARD REED SOLICITORS,1560441:3000000317910008,30937.49, Legal Aid Civil Representation ,
MOJ,LAA,03/10/18,Higher Crime,LEGAL AID FUND,RMNJ SOLICITORS ***,1561295:150529087,97616.83, Legal Aid Higher Crime ,
MOJ,LAA,03/10/18,Higher Crime,LEGAL AID FUND,ROWE SPARKES SOLICITORS LTD,1558662:150552762,27350.23, Legal Aid Higher Crime ,
MOJ,LAA,03/10/18,Higher Crime,LEGAL AID FUND,SAHOTA & SAHOTA SOLICITORS,1558461:150520950,29664.55, Legal Aid Higher Crime ,
MOJ,LAA,03/10/18,Higher Crime,LEGAL AID FUND,SALHAN & CO LTD,1558115:150542459,63481.38, Legal Aid Higher Crime ,
MOJ,LAA,03/10/18,Higher Crime,LEGAL AID FUND,SALHAN & CO LTD,1558115:150249385,-49275.35, Legal Aid Higher Crime ,
MOJ,LAA,03/10/18,Civil Representation,LEGAL AID FUND,SAM MOMTAZ,1560864:3000001789260020,46234.8, Legal Aid Civil Representation ,
MOJ,LAA,03/10/18,Civil Representation,LEGAL AID FUND,SARA A RUDMAN,1558906:3000002599380021,28619.16, Legal Aid Civil Representation ,
MOJ,LAA,03/10/18,Higher Crime,LEGAL AID FUND,SHAIKH AYUB SOLICITORS,1558997:150553633,89972.58, Legal Aid Higher Crime ,
MOJ,LAA,03/10/18,Higher Crime,LEGAL AID FUND,SHANAHANS SOLICITORS & ADVOCATES,1558414:150535998,29194.06, Legal Aid Higher Crime ,
MOJ,LAA,03/10/18,Higher Crime,LEGAL AID FUND,SMITH PARTNERSHIP,1558356:150536279,27330.89, Legal Aid Higher Crime ,
MOJ,LAA,03/10/18,Higher Crime,LEGAL AID FUND,SPERRIN  LAW LTD,1559149:150528806,65378.4, Legal Aid Higher Crime ,
MOJ,LAA,03/10/18,Higher Crime,LEGAL AID FUND,SPERRIN  LAW LTD,1559149:150520440,64534.6, Legal Aid Higher Crime ,
MOJ,LAA,03/10/18,Higher Crime,LEGAL AID FUND,STEPHEN MOSES,1561209:150520346,26519.81, Legal Aid Higher Crime ,
MOJ,LAA,03/10/18,Higher Crime,LEGAL AID FUND,STOCK MORAN & SWALWELL,1560174:150520742,56128.68, Legal Aid Higher Crime ,
MOJ,LAA,03/10/18,Higher Crime,LEGAL AID FUND,STOKOE PARTNERSHIP,1559072:150520001,40339.52, Legal Aid Higher Crime ,
MOJ,LAA,03/10/18,Higher Crime,LEGAL AID FUND,SVS SOLICITORS,1558974:150553396,89975.11, Legal Aid Higher Crime ,
MOJ,LAA,03/10/18,Civil Representation,LEGAL AID FUND,THE FAMILY LAW CO BY HARTNELL CHANOT,1559442:3000002200930035,31927.96, Legal Aid Civil Representation ,
MOJ,LAA,03/10/18,Higher Crime,LEGAL AID FUND,THOMPSON & CO SOLICITORS LTD,1558990:150552707,89975.11, Legal Aid Higher Crime ,
MOJ,LAA,03/10/18,Higher Crime,LEGAL AID FUND,TILSON SOLICITORS,1559199:150553035,29579.66, Legal Aid Higher Crime ,
MOJ,LAA,03/10/18,Higher Crime,LEGAL AID FUND,TUCKERS SOLICITORS LLP,1560458:150543138,32958.36, Legal Aid Higher Crime ,
MOJ,LAA,03/10/18,Higher Crime,LEGAL AID FUND,TUCKERS SOLICITORS LLP,1560458:150536241,30994.46, Legal Aid Higher Crime ,
MOJ,LAA,03/10/18,Higher Crime,LEGAL AID FUND,VANGUARD SOLICITORS,1559335:150521109,71545.9, Legal Aid Higher Crime ,
MOJ,LAA,03/10/18,Higher Crime,LEGAL AID FUND,WALKERS & PARTNERS LTD,1558454:150536125,129088.88, Legal Aid Higher Crime ,
MOJ,LAA,03/10/18,Civil Representation,LEGAL AID FUND,WBW SOLICITORS LLP,1559092:150533712,33221.64, Legal Aid Civil Representation ,
MOJ,LAA,03/10/18,Civil Representation,LEGAL AID FUND,WBW SOLICITORS LLP,1559092:150533713,-33265.64, Legal Aid Civil Representation ,
MOJ,LAA,03/10/18,Civil Representation,LEGAL AID FUND,WILLIAM A METAXA,1557970:3000001899690007,25898.4, Legal Aid Civil Representation ,
MOJ,LAA,03/10/18,Civil Representation,LEGAL AID FUND,WILLIAM J TYLER,1561506:3000001668160009,55015.2, Legal Aid Civil Representation ,
MOJ,LAA,03/10/18,Higher Crime,LEGAL AID FUND,YASMIN & SHAID SOLICITORS LTD,1558661:150536069,39317.58, Legal Aid Higher Crime ,
MOJ,LAA,04/10/18,EXP - PURCHASE OF GOODS/SERVICES - SUPPORT - APPLICATION MAINTENANCE AND SUPPORT,Civil Case Management - Newcastle,NORTHGATE PUBLIC SERVICES (UK) LTD,91411846,79350, IT Costs ,
MOJ,LAA,05/10/18,EXP - PURCHASE OF GOODS/SERVICES - SUPPORT - APPLICATION DEVELOPMENT,Business Systems Mgmt,HOME OFFICE IT,SR01382,87213.5, IT Costs ,
MOJ,LAA,05/10/18,EXP - PURCHASE OF GOODS/SERVICES - SUPPORT - APPLICATION DEVELOPMENT,Business Systems Mgmt,HOME OFFICE IT,SR01381,86095, IT Costs ,
MOJ,LAA,05/10/18,EXP - PURCHASE OF GOODS/SERVICES - SUPPORT - APPLICATION DEVELOPMENT,Business Systems Mgmt,HOME OFFICE IT,SR01383,80599, IT Costs ,
MOJ,LAA,05/10/18,EXP - PURCHASE OF GOODS/SERVICES - SUPPORT - APPLICATION DEVELOPMENT,Business Systems Mgmt,HOME OFFICE IT,SR01380,80334, IT Costs ,
MOJ,LAA,05/10/18,EXP - RENTALS UNDER NON-PFI OPERATING LEASES - BUILDINGS,Property Costs - Nottingham,KNIGHT FRANK LLP,178831,35214.1, Property Costs ,
MOJ,LAA,05/10/18,EXP - PURCHASE OF GOODS/SERVICES - ACCOMMODATION & BLDNG MANAGEMENT - Building Improvement Works,Property Costs - Manchester,LCR LTD,SIN001257,38493.6, Property Costs ,
MOJ,LAA,08/10/18,EXP - PURCHASE OF GOODS/SERVICES - SUPPORT - APPLICATION MAINTENANCE AND SUPPORT,Business Systems Mgmt,ATOS IT SERVICES UK LTD,5584252206,43530, IT Costs ,
MOJ,LAA,08/10/18,EXP - PURCHASE OF GOODS/SERVICES - SUPPORT - APPLICATION MAINTENANCE AND SUPPORT,Business Systems Mgmt,ATOS IT SERVICES UK LTD,5584282871,24833.83, IT Costs ,
MOJ,LAA,08/10/18,EXP - PURCHASE OF GOODS/SERVICES - OTHER PROFESSIONAL SERVICES - LEGAL SERVICES - THIRD PARTY LEGAL COSTS,National Courts Core Team NCT,ROSSENDALES LTD,40108,69222.67, Fund Costs ,
MOJ,LAA,08/10/18,EXP - PURCHASE OF GOODS/SERVICES - OTHER PROFESSIONAL SERVICES - LEGAL SERVICES - THIRD PARTY LEGAL COSTS,National Courts Core Team NCT,ROSSENDALES LTD,40109,68952.33, Fund Costs ,
MOJ,LAA,09/10/18,Lower Crime,LEGAL AID FUND,BESWICKS SOLICITORS LLP,1557556:150514925,-40429, Legal Aid Lower Crime ,
MOJ,LAA,10/10/18,Higher Crime,LEGAL AID FUND,A & M SOLICITORS LTD,1563360:150610377,121364, Legal Aid Higher Crime ,
MOJ,LAA,10/10/18,Higher Crime,LEGAL AID FUND,ABV SOLICITORS,1565203:150610435,105857.75, Legal Aid Higher Crime ,
MOJ,LAA,10/10/18,Higher Crime,LEGAL AID FUND,ABV SOLICITORS,1565203:150611173,49729.07, Legal Aid Higher Crime ,
MOJ,LAA,10/10/18,Higher Crime,LEGAL AID FUND,ADAM V S KANE,1565828:150618588,134000, Legal Aid Higher Crime ,
MOJ,LAA,10/10/18,Higher Crime,LEGAL AID FUND,ALISTAIR J POLSON,1563922:150581286,27133.34, Legal Aid Higher Crime ,
MOJ,LAA,10/10/18,Higher Crime,LEGAL AID FUND,APPLEBY HOPE & MATTHEWS,1562893:150589983,52736.3, Legal Aid Higher Crime ,
MOJ,LAA,10/10/18,Higher Crime,LEGAL AID FUND,APPLEBY SHAW LTD,1562306:150582211,52638.91, Legal Aid Higher Crime ,
MOJ,LAA,10/10/18,Higher Crime,LEGAL AID FUND,ASKEWS LEGAL LLP,1565961:150573139,31602.44, Legal Aid Higher Crime ,
MOJ,LAA,10/10/18,Higher Crime,LEGAL AID FUND,AUBREY SOLICITORS,1562996:150610400,127029.3, Legal Aid Higher Crime ,
MOJ,LAA,10/10/18,Higher Crime,LEGAL AID FUND,AVISONS LAW LTD,1562077:150563183,105857.75, Legal Aid Higher Crime ,
MOJ,LAA,10/10/18,Civil Representation,LEGAL AID FUND,BANSA SINGH HAYER,1564865:150617748,28585.44, Legal Aid Civil Representation ,
MOJ,LAA,10/10/18,Civil Representation,LEGAL AID FUND,BASTIAN LLOYD MORRIS SOLICITOR ADVOCATES,1565516:3000002088060015,27479.69, Legal Aid Civil Representation ,
MOJ,LAA,10/10/18,Higher Crime,LEGAL AID FUND,BERKELEY SQUARE SOLICITORS LTD,1563410:150581097,32227.94, Legal Aid Higher Crime ,
MOJ,LAA,10/10/18,Lower Crime,LEGAL AID FUND,BESWICKS SOLICITORS LLP,1562184:150514925,40429, Legal Aid Lower Crime ,
MOJ,LAA,10/10/18,Higher Crime,LEGAL AID FUND,BIRDS SOLICITORS LTD,1565246:150582097,32705.76, Legal Aid Higher Crime ,
MOJ,LAA,10/10/18,Higher Crime,LEGAL AID FUND,BLACKWELLS,1565280:150610405,85099.69, Legal Aid Higher Crime ,
MOJ,LAA,10/10/18,Civil Representation,LEGAL AID FUND,BREARLEYS SOLICITORS,1563719:3000001668160010,40648.09, Legal Aid Civil Representation ,
MOJ,LAA,10/10/18,Higher Crime,LEGAL AID FUND,BRIAN A W REECE,1565850:150610789,41323.2, Legal Aid Higher Crime ,
MOJ,LAA,10/10/18,Higher Crime,LEGAL AID FUND,BROOKLYN SOLICITORS LTD,1563364:150582639,32408.57, Legal Aid Higher Crime ,
MOJ,LAA,10/10/18,Civil Representation,LEGAL AID FUND,CAROL H MICAH,1563223:3000001303910023,33242.4, Legal Aid Civil Representation ,
MOJ,LAA,10/10/18,Higher Crime,LEGAL AID FUND,CARSON KAYE SOLICITORS,1562297:150562933,64645.2, Legal Aid Higher Crime ,
MOJ,LAA,10/10/18,Higher Crime,LEGAL AID FUND,CARSON KAYE SOLICITORS,1562297:150562831,49729.07, Legal Aid Higher Crime ,
MOJ,LAA,10/10/18,Higher Crime,LEGAL AID FUND,CARTWRIGHT KING LTD,1564919:150610503,89975.11, Legal Aid Higher Crime ,
MOJ,LAA,10/10/18,Higher Crime,LEGAL AID FUND,CARTWRIGHT KING LTD,1564917:150590143,37296.8, Legal Aid Higher Crime ,
MOJ,LAA,10/10/18,Higher Crime,LEGAL AID FUND,CARTWRIGHT KING LTD,1566097:150610934,26866.19, Legal Aid Higher Crime ,
MOJ,LAA,10/10/18,Higher Crime,LEGAL AID FUND,CATHERINE RABAIOTTI,1565098:150571705,26967.77, Legal Aid Higher Crime ,
MOJ,LAA,10/10/18,Higher Crime,LEGAL AID FUND,CHARTER SOLICITORS,1562666:150590389,63243.05, Legal Aid Higher Crime ,
MOJ,LAA,10/10/18,Higher Crime,LEGAL AID FUND,CHRISTOPHER M HENLEY,1565824:150569160,96000, Legal Aid Higher Crime ,
MOJ,LAA,10/10/18,Legal Help,LEGAL AID FUND,CORAM CHILDREN'S LEGAL CENTRE,1564472:150587198,49947.61, Legal Aid Legal Help ,
MOJ,LAA,10/10/18,Higher Crime,LEGAL AID FUND,CREDENCE LAW GROUP,1564079:150589907,89975.11, Legal Aid Higher Crime ,
MOJ,LAA,10/10/18,Higher Crime,LEGAL AID FUND,CRIMINAL DEFENCE ASSOCIATES LTD,1565540:150562422,69170.16, Legal Aid Higher Crime ,
MOJ,LAA,10/10/18,Higher Crime,LEGAL AID FUND,CRIMINAL DEFENCE ASSOCIATES LTD,1565540:150572216,30159.52, Legal Aid Higher Crime ,
MOJ,LAA,10/10/18,Higher Crime,LEGAL AID FUND,DALTON HOLMES GRAY,1564391:150590804,25166.48, Legal Aid Higher Crime ,
MOJ,LAA,10/10/18,Higher Crime,LEGAL AID FUND,DANIEL G B PROWSE,1563963:150581600,26066.5, Legal Aid Higher Crime ,
MOJ,LAA,10/10/18,Higher Crime,LEGAL AID FUND,DESMOND J LENNON,1565429:150610826,35488.56, Legal Aid Higher Crime ,
MOJ,LAA,10/10/18,Civil Representation,LEGAL AID FUND,DODDS SOLICITORS LLP,1564045:3000002321250012,27239.25, Legal Aid Civil Representation ,
MOJ,LAA,10/10/18,Higher Crime,LEGAL AID FUND,DPP LAW LTD,1564788:150590441,82607.54, Legal Aid Higher Crime ,
MOJ,LAA,10/10/18,Higher Crime,LEGAL AID FUND,DPP LAW LTD,1564790:150610656,59674.88, Legal Aid Higher Crime ,
MOJ,LAA,10/10/18,Higher Crime,LEGAL AID FUND,DUNCAN LEWIS SOLICITORS  LTD,1564742:150563666,65378.4, Legal Aid Higher Crime ,
MOJ,LAA,10/10/18,Civil Representation,LEGAL AID FUND,EATON SMITH LLP,1563256:3000002796920010,30768.88, Legal Aid Civil Representation ,
MOJ,LAA,10/10/18,Higher Crime,LEGAL AID FUND,EBR ATTRIDGE LLP,1565563:150590260,67726.7, Legal Aid Higher Crime ,
MOJ,LAA,10/10/18,Higher Crime,LEGAL AID FUND,EDWARD S A DUNCAN-SMITH,1562277:150563099,25275.6, Legal Aid Higher Crime ,
MOJ,LAA,10/10/18,Higher Crime,LEGAL AID FUND,EDWARDS DUTHIE,1565599:150562322,47941.46, Legal Aid Higher Crime ,
MOJ,LAA,10/10/18,Higher Crime,LEGAL AID FUND,EDWARDS DUTHIE,1565599:150562925,26124.66, Legal Aid Higher Crime ,
MOJ,LAA,10/10/18,Civil Representation,LEGAL AID FUND,ELLIOT MATHER LLP,1563671:3000002706540020,34717.47, Legal Aid Civil Representation ,
MOJ,LAA,10/10/18,Higher Crime,LEGAL AID FUND,FARADAYS SOLICITORS LTD,1564775:150610421,127029.3, Legal Aid Higher Crime ,
MOJ,LAA,10/10/18,Higher Crime,LEGAL AID FUND,FARLEYS SOLICITORS LLP,1562975:150572854,32457.84, Legal Aid Higher Crime ,
MOJ,LAA,10/10/18,Higher Crime,LEGAL AID FUND,FDR LAW,1562911:150610411,107970.13, Legal Aid Higher Crime ,
MOJ,LAA,10/10/18,Higher Crime,LEGAL AID FUND,FORBES SOLICITORS,1564460:150572579,85427.66, Legal Aid Higher Crime ,
MOJ,LAA,10/10/18,Civil Representation,LEGAL AID FUND,FOSTERS SOLICITORS LLP,1564021:3000001118430008,36021.1, Legal Aid Civil Representation ,
MOJ,LAA,10/10/18,Civil Representation,LEGAL AID FUND,FRANCES J JUDD,1564853:3000002903120016,28725.84, Legal Aid Civil Representation ,
MOJ,LAA,10/10/18,Civil Representation,LEGAL AID FUND,FRANCESCA P D WILEY QC,1564695:3000003680730008,43324.61, Legal Aid Civil Representation ,
MOJ,LAA,10/10/18,Civil Representation,LEGAL AID FUND,GARFIELD Z BRAITHWAITE,1564902:3000001112120005,25604.1, Legal Aid Civil Representation ,
MOJ,LAA,10/10/18,Higher Crime,LEGAL AID FUND,GARY T BELL QC,1565117:150572181,28127.4, Legal Aid Higher Crime ,
MOJ,LAA,10/10/18,Higher Crime,LEGAL AID FUND,GGP LAW LTD,1565576:150571763,34311.85, Legal Aid Higher Crime ,
MOJ,LAA,10/10/18,Higher Crime,LEGAL AID FUND,GSG LAW (LTD),1563367:150590942,105857.75, Legal Aid Higher Crime ,
MOJ,LAA,10/10/18,Higher Crime,LEGAL AID FUND,HAMSTEAD LAW PRACTICE,1565194:150610674,62666.42, Legal Aid Higher Crime ,
MOJ,LAA,10/10/18,Higher Crime,LEGAL AID FUND,HANNE & CO,1565377:150590166,29769.31, Legal Aid Higher Crime ,
MOJ,LAA,10/10/18,Civil Representation,LEGAL AID FUND,HARDING EVANS LLP,1565976:3000002391830050,27535.42, Legal Aid Civil Representation ,
MOJ,LAA,10/10/18,Civil Representation,LEGAL AID FUND,HELEN M G KHAN,1562379:3000003975860006,39466.28, Legal Aid Civil Representation ,
MOJ,LAA,10/10/18,Higher Crime,LEGAL AID FUND,I B B SOLICITORS,1565218:150590475,52704.13, Legal Aid Higher Crime ,
MOJ,LAA,10/10/18,Higher Crime,LEGAL AID FUND,ISAAC SOLICITORS,1562665:150590201,79120.08, Legal Aid Higher Crime ,
MOJ,LAA,10/10/18,Higher Crime,LEGAL AID FUND,ISHAQ & UDDIN ASSOCIATES LLP,1562623:150562696,25951.45, Legal Aid Higher Crime ,
MOJ,LAA,10/10/18,Higher Crime,LEGAL AID FUND,J D SOLICITORS,1563407:150563947,89975.11, Legal Aid Higher Crime ,
MOJ,LAA,10/10/18,Higher Crime,LEGAL AID FUND,J D SOLICITORS,1565195:150611171,34979.16, Legal Aid Higher Crime ,
MOJ,LAA,10/10/18,Civil Representation,LEGAL AID FUND,J L LAW LIMITED,1564948:150617666,25481.13, Legal Aid Civil Representation ,
MOJ,LAA,10/10/18,Civil Representation,LEGAL AID FUND,JI SOLICITORS LTD,1562954:3000002367470025,32222.96, Legal Aid Civil Representation ,
MOJ,LAA,10/10/18,Higher Crime,LEGAL AID FUND,JOANNE CECIL,1563991:150573106,30393.96, Legal Aid Higher Crime ,
MOJ,LAA,10/10/18,Higher Crime,LEGAL AID FUND,JOHN C ELVIDGE QC,1563159:150616234,96000, Legal Aid Higher Crime ,
MOJ,LAA,10/10/18,Higher Crime,LEGAL AID FUND,JOHN C TOWNSEND,1563011:150569161,48439.99, Legal Aid Higher Crime ,
MOJ,LAA,10/10/18,Higher Crime,LEGAL AID FUND,JONATHAN LENNON,1564302:150618509,67440, Legal Aid Higher Crime ,
MOJ,LAA,10/10/18,Higher Crime,LEGAL AID FUND,JOSEPH HILL & CO,1563696:150581769,48356.39, Legal Aid Higher Crime ,
MOJ,LAA,10/10/18,Higher Crime,LEGAL AID FUND,K A LEGAL PROVIDERS LTD,1562078:150562707,89975.11, Legal Aid Higher Crime ,
MOJ,LAA,10/10/18,Higher Crime,LEGAL AID FUND,KELCEY & HALL SOLICITORS,1563661:150618589,28626.16, Legal Aid Higher Crime ,
MOJ,LAA,10/10/18,Civil Representation,LEGAL AID FUND,KINGSFORDS SOLICITORS LTD,1565398:3000001704100009,32160.81, Legal Aid Civil Representation ,
MOJ,LAA,10/10/18,Higher Crime,LEGAL AID FUND,KRISTINA HARRISON SOLICITORS-ADVOCATE,1563449:150590061,32652.67, Legal Aid Higher Crime ,
MOJ,LAA,10/10/18,Higher Crime,LEGAL AID FUND,LAWRENCE J C SELBY,1562502:150571927,35110.56, Legal Aid Higher Crime ,
MOJ,LAA,10/10/18,Higher Crime,LEGAL AID FUND,LAWTONS SOLICITORS LTD,1563438:150572384,29884.85, Legal Aid Higher Crime ,
MOJ,LAA,10/10/18,Higher Crime,LEGAL AID FUND,LEE & CO,1564949:150590954,89975.11, Legal Aid Higher Crime ,
MOJ,LAA,10/10/18,Civil Representation,LEGAL AID FUND,LIANNE C MURPHY,1562821:150390334,35445.6, Legal Aid Civil Representation ,
MOJ,LAA,10/10/18,Civil Representation,LEGAL AID FUND,LIANNE C MURPHY,1562821:150424094,-41660.02, Legal Aid Civil Representation ,
MOJ,LAA,10/10/18,Higher Crime,LEGAL AID FUND,LIBERTY LAW SOLICITORS LTD,1565518:150610469,26893.52, Legal Aid Higher Crime ,
MOJ,LAA,10/10/18,Civil Representation,LEGAL AID FUND,LILLYWHITE WILLIAMS & CO,1566022:3000003538190015,31816.8, Legal Aid Civil Representation ,
MOJ,LAA,10/10/18,Higher Crime,LEGAL AID FUND,LLOYDS PR SOLICITORS,1565946:150563406,89975.11, Legal Aid Higher Crime ,
MOJ,LAA,10/10/18,Higher Crime,LEGAL AID FUND,LLOYDS PR SOLICITORS,1565946:150610403,69659.26, Legal Aid Higher Crime ,
MOJ,LAA,10/10/18,Higher Crime,LEGAL AID FUND,LLOYDS PR SOLICITORS,1565946:150563346,29664.55, Legal Aid Higher Crime ,
MOJ,LAA,10/10/18,Higher Crime,LEGAL AID FUND,LLOYDS PR SOLICITORS,1565946:150590406,26092.68, Legal Aid Higher Crime ,
MOJ,LAA,10/10/18,Higher Crime,LEGAL AID FUND,LONDONIUM SOLICITORS,1563051:150611565,71999.28, Legal Aid Higher Crime ,
MOJ,LAA,10/10/18,Higher Crime,LEGAL AID FUND,MARK JONES & PARTNERS,1564731:150610497,37296.8, Legal Aid Higher Crime ,
MOJ,LAA,10/10/18,Higher Crime,LEGAL AID FUND,MARK P STYLES,1565095:150616233,48440, Legal Aid Higher Crime ,
MOJ,LAA,10/10/18,Higher Crime,LEGAL AID FUND,MATTHEW C LAWSON,1565805:150581616,37859.76, Legal Aid Higher Crime ,
MOJ,LAA,10/10/18,Civil Representation,LEGAL AID FUND,MCGUINNESS LEGAL,1564559:150607107,33783.79, Legal Aid Civil Representation ,
MOJ,LAA,10/10/18,Civil Representation,LEGAL AID FUND,MCGUINNESS LEGAL,1564559:150607108,-32662.17, Legal Aid Civil Representation ,
MOJ,LAA,10/10/18,Higher Crime,LEGAL AID FUND,MICHAEL D STRADLING,1562768:150581467,27568.68, Legal Aid Higher Crime ,
MOJ,LAA,10/10/18,Higher Crime,LEGAL AID FUND,MICHAEL H SCHOLES,1565441:150571796,35488.56, Legal Aid Higher Crime ,
MOJ,LAA,10/10/18,Higher Crime,LEGAL AID FUND,MICHAEL J LAVERY,1562722:150567012,48439.99, Legal Aid Higher Crime ,
MOJ,LAA,10/10/18,Civil Representation,LEGAL AID FUND,MICHAEL LIEBRECHT,1564662:3000001473540014,47845.37, Legal Aid Civil Representation ,
MOJ,LAA,10/10/18,Civil Representation,LEGAL AID FUND,MILES & PARTNERS LLP,1563313:3000002447530008,32166.05, Legal Aid Civil Representation ,
MOJ,LAA,10/10/18,Higher Crime,LEGAL AID FUND,MITCHELLS SOLICITORS LLP,1565524:150590253,89975.11, Legal Aid Higher Crime ,
MOJ,LAA,10/10/18,Higher Crime,LEGAL AID FUND,MPR SOLICITORS LLP-ADVOCATE,1563515:150610814,26036.88, Legal Aid Higher Crime ,
MOJ,LAA,10/10/18,Higher Crime,LEGAL AID FUND,MSB LAW LLP,1562592:150581494,48890.65, Legal Aid Higher Crime ,
MOJ,LAA,10/10/18,Higher Crime,LEGAL AID FUND,MSB LAW LLP,1562592:150581581,40417.13, Legal Aid Higher Crime ,
MOJ,LAA,10/10/18,Higher Crime,LEGAL AID FUND,NAVJOT SIDHU,1562811:150582371,71997.18, Legal Aid Higher Crime ,
MOJ,LAA,10/10/18,Higher Crime,LEGAL AID FUND,NAVJOT SIDHU,1562811:150572451,46980.94, Legal Aid Higher Crime ,
MOJ,LAA,10/10/18,Higher Crime,LEGAL AID FUND,O'KEEFFE SOLICITORS,1565661:150590326,107574.07, Legal Aid Higher Crime ,
MOJ,LAA,10/10/18,Higher Crime,LEGAL AID FUND,ONE LEGAL SERVICES LTD,1563416:150611453,86945.95, Legal Aid Higher Crime ,
MOJ,LAA,10/10/18,Civil Representation,LEGAL AID FUND,OSBORNES SOLICITORS LLP,1565631:3000001826460018,32019.7, Legal Aid Civil Representation ,
MOJ,LAA,10/10/18,Civil Representation,LEGAL AID FUND,PETER DUNN AND CO LTD,1562959:3000001835400014,26144.52, Legal Aid Civil Representation ,
MOJ,LAA,10/10/18,Higher Crime,LEGAL AID FUND,PETER L GUEST,1565854:150610821,27116.88, Legal Aid Higher Crime ,
MOJ,LAA,10/10/18,Higher Crime,LEGAL AID FUND,PETER L WILCOCK,1562818:150587517,133999.99, Legal Aid Higher Crime ,
MOJ,LAA,10/10/18,Higher Crime,LEGAL AID FUND,PETHERBRIDGE BASSRA SOLICITORS LTD,1564978:150617319,43535.64, Legal Aid Higher Crime ,
MOJ,LAA,10/10/18,Higher Crime,LEGAL AID FUND,PHILIP HANBY LTD T/A ANDREW JAY & CO,1563353:150610373,30604.1, Legal Aid Higher Crime ,
MOJ,LAA,10/10/18,Higher Crime,LEGAL AID FUND,POTTER DERBY LTD,1562543:150563542,34311.85, Legal Aid Higher Crime ,
MOJ,LAA,10/10/18,Higher Crime,LEGAL AID FUND,RAHMAN RAVELLI SOLICITORS LTD,1564394:150563478,81347.36, Legal Aid Higher Crime ,
MOJ,LAA,10/10/18,Higher Crime,LEGAL AID FUND,RAHMAN RAVELLI SOLICITORS LTD,1564394:150572243,63031.25, Legal Aid Higher Crime ,
MOJ,LAA,10/10/18,Higher Crime,LEGAL AID FUND,ROBERT MORRIS,1562106:150572320,31305.72, Legal Aid Higher Crime ,
MOJ,LAA,10/10/18,Higher Crime,LEGAL AID FUND,ROBIN BARCLAY,1564854:150572060,26982.05, Legal Aid Higher Crime ,
MOJ,LAA,10/10/18,Civil Representation,LEGAL AID FUND,ROWBERRY MORRIS THAMES VALLEY LLP,1566032:3000000358630008,60827.52, Legal Aid Civil Representation ,
MOJ,LAA,10/10/18,Higher Crime,LEGAL AID FUND,ROWE SPARKES SOLICITORS LTD,1565262:150610375,68560.95, Legal Aid Higher Crime ,
MOJ,LAA,10/10/18,Higher Crime,LEGAL AID FUND,ROWE SPARKES SOLICITORS LTD,1565262:150611116,26464.45, Legal Aid Higher Crime ,
MOJ,LAA,10/10/18,Higher Crime,LEGAL AID FUND,RUSTEM GUARDIAN LLP,1565197:150582102,33887.9, Legal Aid Higher Crime ,
MOJ,LAA,10/10/18,Higher Crime,LEGAL AID FUND,S SATHA & CO LTD,1563294:150572544,60258.43, Legal Aid Higher Crime ,
MOJ,LAA,10/10/18,Higher Crime,LEGAL AID FUND,SAHOTA & SAHOTA SOLICITORS,1562295:150589959,105857.75, Legal Aid Higher Crime ,
MOJ,LAA,10/10/18,Civil Representation,LEGAL AID FUND,SHARRATTS SOLICITORS  LTD,1565209:3000003732430008,44956.79, Legal Aid Civil Representation ,
MOJ,LAA,10/10/18,Higher Crime,LEGAL AID FUND,SHEARMAN BOWEN & CO,1564401:150582261,49889.89, Legal Aid Higher Crime ,
MOJ,LAA,10/10/18,Higher Crime,LEGAL AID FUND,SIMEON V EVANS,1563190:150582592,36674.16, Legal Aid Higher Crime ,
MOJ,LAA,10/10/18,Higher Crime,LEGAL AID FUND,SIMON CSOKA,1563974:150605795,96000, Legal Aid Higher Crime ,
MOJ,LAA,10/10/18,Civil Representation,LEGAL AID FUND,SIMON KING,1562360:150586599,28489.5, Legal Aid Civil Representation ,
MOJ,LAA,10/10/18,Higher Crime,LEGAL AID FUND,SIMON R ECKERSLEY,1564655:150581835,33400.82, Legal Aid Higher Crime ,
MOJ,LAA,10/10/18,Civil Representation,LEGAL AID FUND,SIMPSON MILLAR SOLICITORS LLP,1563331:150576369,25204.32, Legal Aid Civil Representation ,
MOJ,LAA,10/10/18,Higher Crime,LEGAL AID FUND,SJ LAW,1563379:150562693,107574.07, Legal Aid Higher Crime ,
MOJ,LAA,10/10/18,Higher Crime,LEGAL AID FUND,STEPHEN LICKRISH & ASSOCIATES LTD,1565199:150581883,26842.45, Legal Aid Higher Crime ,
MOJ,LAA,10/10/18,Higher Crime,LEGAL AID FUND,STEPHEN N SPENCE,1563937:150572149,26101.56, Legal Aid Higher Crime ,
MOJ,LAA,10/10/18,Higher Crime,LEGAL AID FUND,STERNBERG REED SOLICITORS,1565268:150562965,89975.11, Legal Aid Higher Crime ,
MOJ,LAA,10/10/18,Higher Crime,LEGAL AID FUND,SUSAN A RODHAM,1564542:150571716,28368.48, Legal Aid Higher Crime ,
MOJ,LAA,10/10/18,Civil Representation,LEGAL AID FUND,T LLEWELLYN JONES,1566002:150616140,26885.58, Legal Aid Civil Representation ,
MOJ,LAA,10/10/18,Higher Crime,LEGAL AID FUND,T S LAW LTD,1564246:150612237,42683.95, Legal Aid Higher Crime ,
MOJ,LAA,10/10/18,Higher Crime,LEGAL AID FUND,T S LAW LTD,1564385:150571847,34311.85, Legal Aid Higher Crime ,
MOJ,LAA,10/10/18,Higher Crime,LEGAL AID FUND,TAYLOR LEWIS,1566029:150610489,54037.68, Legal Aid Higher Crime ,
MOJ,LAA,10/10/18,Higher Crime,LEGAL AID FUND,THE JOHNSON PARTNERSHIP,1565897:150590340,32594.62, Legal Aid Higher Crime ,
MOJ,LAA,10/10/18,Lower Crime,LEGAL AID FUND,THE JOHNSON PARTNERSHIP,1564061:150570283,26845.39, Legal Aid Lower Crime ,
MOJ,LAA,10/10/18,Higher Crime,LEGAL AID FUND,THE OAKES PARTNERSHIP LTD,1564922:150610230,44431.54, Legal Aid Higher Crime ,
MOJ,LAA,10/10/18,Higher Crime,LEGAL AID FUND,THE RINGROSE LAW,1563682:150610407,31038.57, Legal Aid Higher Crime ,
MOJ,LAA,10/10/18,Higher Crime,LEGAL AID FUND,THOMPSON & CO SOLICITORS LTD,1565571:150563074,51609.88, Legal Aid Higher Crime ,
MOJ,LAA,10/10/18,Higher Crime,LEGAL AID FUND,TOM B WATSON,1565170:150610829,35488.56, Legal Aid Higher Crime ,
MOJ,LAA,10/10/18,Higher Crime,LEGAL AID FUND,VCW LAW,1563277:150610949,49729.07, Legal Aid Higher Crime ,
MOJ,LAA,12/10/18,EXP - PURCHASE OF GOODS/SERVICES - SUPPORT - APPLICATION MAINTENANCE AND SUPPORT,Business Systems Mgmt,ATOS IT SERVICES UK LTD,5584255981,33022.06, IT Costs ,
MOJ,LAA,12/10/18,EXP - PURCHASE OF GOODS/SERVICES - OFFICE RELATED - Reprographics,Centralised Costs,CORPORATE DOCUMENT SERVICES LTD,211482,49897.21, Printing Costs ,
MOJ,LAA,12/10/18,Civil Representation,LEGAL AID FUND,BHATT MURPHY SOLICITORS,1566457:150026761,-37570.07, Legal Aid Civil Representation ,
MOJ,LAA,12/10/18,Legal Help,LEGAL AID FUND,BHATT MURPHY SOLICITORS,1566457:2000000000006834,-47394, Legal Aid Legal Help ,
MOJ,LAA,12/10/18,Civil Representation,LEGAL AID FUND,BHATT MURPHY SOLICITORS,1566457:150027028,-49252.46, Legal Aid Civil Representation ,
MOJ,LAA,12/10/18,Civil Representation,LEGAL AID FUND,JACQUELINE L THOMAS,1566449:3000001592960012RC,-27731.94, Legal Aid Civil Representation ,
MOJ,LAA,15/10/18,EXP - PURCHASE OF GOODS/SERVICES - OTHER - Translation / Interpreting Services,Central Funds,THEBIGWORD INTERPRETING SERVICES LTD,90209653,952940.13, Translation / Interpreting Services Costs ,
MOJ,LAA,17/10/18,EXP - RENTALS UNDER NON-PFI OPERATING LEASES - BUILDINGS,Property Costs - Brighton,DEPARTMENT FOR EDUCATION,LAA-SOP6-EXI-10458,318333.79, Property Costs ,
MOJ,LAA,17/10/18,Higher Crime,LEGAL AID FUND,ABV SOLICITORS,1569806:150621424,52928.88, Legal Aid Higher Crime ,
MOJ,LAA,17/10/18,Higher Crime,LEGAL AID FUND,ALBIN & CO LTD,1569768:150664084,25038.86, Legal Aid Higher Crime ,
MOJ,LAA,17/10/18,Higher Crime,LEGAL AID FUND,ALTAF SOLICITORS LTD,1570456:150629631,65378.4, Legal Aid Higher Crime ,
MOJ,LAA,17/10/18,Higher Crime,LEGAL AID FUND,ALTAF SOLICITORS LTD,1570456:150646047,-38740.74, Legal Aid Higher Crime ,
MOJ,LAA,17/10/18,Higher Crime,LEGAL AID FUND,AMPHLETT LISSIMORE BAGSHAWS LLP,1569846:150629415,32109.58, Legal Aid Higher Crime ,
MOJ,LAA,17/10/18,Civil Representation,LEGAL AID FUND,ANDREW J C COMAISH,1570371:3000002451080006,30112.88, Legal Aid Civil Representation ,
MOJ,LAA,17/10/18,Higher Crime,LEGAL AID FUND,ANDREW P NUTTALL,1569399:150627835,48439.99, Legal Aid Higher Crime ,
MOJ,LAA,17/10/18,Higher Crime,LEGAL AID FUND,ANDREW THOMAS QC,1569033:150627764,96000, Legal Aid Higher Crime ,
MOJ,LAA,17/10/18,Higher Crime,LEGAL AID FUND,APEX LAWYERS LTD,1566550:150646924,50880.2, Legal Aid Higher Crime ,
MOJ,LAA,17/10/18,Higher Crime,LEGAL AID FUND,APPLEBY SHAW LTD,1566508:150630412,61080.35, Legal Aid Higher Crime ,
MOJ,LAA,17/10/18,Higher Crime,LEGAL AID FUND,AYUB SOLICITORS,1566529:150630341,35597.46, Legal Aid Higher Crime ,
MOJ,LAA,17/10/18,Higher Crime,LEGAL AID FUND,BAILEY GARCHA SOLICITORS LTD,1566767:150621370,49729.07, Legal Aid Higher Crime ,
MOJ,LAA,17/10/18,Civil Representation,LEGAL AID FUND,BAKERS SOLICITORS.,1569242:3000001516920026,27622.74, Legal Aid Civil Representation ,
MOJ,LAA,17/10/18,Higher Crime,LEGAL AID FUND,BARRICELLA HUGHES MARCHANT,1570081:150636794,44729.05, Legal Aid Higher Crime ,
MOJ,LAA,17/10/18,Higher Crime,LEGAL AID FUND,BERKELEY SQUARE SOLICITORS LTD,1567261:150646228,129088.88, Legal Aid Higher Crime ,
MOJ,LAA,17/10/18,Civil Representation,LEGAL AID FUND,BG SOLICITORS LLP,1568309:3000002453500019,25635.28, Legal Aid Civil Representation ,
MOJ,LAA,17/10/18,Higher Crime,LEGAL AID FUND,BHANDAL LAW,1567243:150663885,89975.11, Legal Aid Higher Crime ,
MOJ,LAA,17/10/18,Higher Crime,LEGAL AID FUND,BHATIA BEST LTD,1568311:150629344,93313.3, Legal Aid Higher Crime ,
MOJ,LAA,17/10/18,Higher Crime,LEGAL AID FUND,BIRNBERG PEIRCE LTD,1569259:150630275,29664.55, Legal Aid Higher Crime ,
MOJ,LAA,17/10/18,Civil Representation,LEGAL AID FUND,BTMK SOLICITORS LTD,1568638:3000002810420012,27750.67, Legal Aid Civil Representation ,
MOJ,LAA,17/10/18,Civil Representation,LEGAL AID FUND,CAMERON JONES HUSSELL & HOWE,1567168:3000002533900023,26661.31, Legal Aid Civil Representation ,
MOJ,LAA,17/10/18,Higher Crime,LEGAL AID FUND,CANTERS CRIME LTD,1567675:150620953,89975.11, Legal Aid Higher Crime ,
MOJ,LAA,17/10/18,Higher Crime,LEGAL AID FUND,CARTWRIGHT KING LTD,1570315:150646156,50265.54, Legal Aid Higher Crime ,
MOJ,LAA,17/10/18,Civil Representation,LEGAL AID FUND,CARTWRIGHT KING LTD,1566704:3000000611240009,26209.62, Legal Aid Civil Representation ,
MOJ,LAA,17/10/18,Higher Crime,LEGAL AID FUND,CARTWRIGHT KING LTD-ADVOCATE,1567770:150629699,34858.44, Legal Aid Higher Crime ,
MOJ,LAA,17/10/18,Higher Crime,LEGAL AID FUND,CHIVERS SOLICITORS,1569205:150625960,107244.41, Legal Aid Higher Crime ,
MOJ,LAA,17/10/18,Higher Crime,LEGAL AID FUND,CHRISTOPHER ROSE,1568208:150621576,31307.4, Legal Aid Higher Crime ,
MOJ,LAA,17/10/18,Higher Crime,LEGAL AID FUND,CITY LAW CHAMBERS LTD,1570448:150646923,42394.88, Legal Aid Higher Crime ,
MOJ,LAA,17/10/18,Higher Crime,LEGAL AID FUND,COBLEYS SOLICITORS LTD,1569226:150663644,60310.56, Legal Aid Higher Crime ,
MOJ,LAA,17/10/18,Higher Crime,LEGAL AID FUND,COSTLEY & PARTNERS,1569513:150620623,38308, Legal Aid Higher Crime ,
MOJ,LAA,17/10/18,Higher Crime,LEGAL AID FUND,DEFENCE LAW LTD,1566707:150646170,105857.75, Legal Aid Higher Crime ,
MOJ,LAA,17/10/18,Higher Crime,LEGAL AID FUND,DEVON DEFENCE SOLICITORS & ADVOCATES,1570559:150621953,89975.11, Legal Aid Higher Crime ,
MOJ,LAA,17/10/18,Higher Crime,LEGAL AID FUND,DEXTER HENRY & CO,1567138:150621915,60229.55, Legal Aid Higher Crime ,
MOJ,LAA,17/10/18,Legal Help,LEGAL AID FUND,DIRECT HELP & ADVICE LTD,1569519:150633866,27330.72, Legal Aid Legal Help ,
MOJ,LAA,17/10/18,Higher Crime,LEGAL AID FUND,DRAYCOTT BROWNE LTD,1568653:150621855,42550.1, Legal Aid Higher Crime ,
MOJ,LAA,17/10/18,Higher Crime,LEGAL AID FUND,DRAYCOTT BROWNE LTD,1568653:150645897,34033.59, Legal Aid Higher Crime ,
MOJ,LAA,17/10/18,Higher Crime,LEGAL AID FUND,DRUMMOND SOLICITORS LTD,1566517:150646088,75032.64, Legal Aid Higher Crime ,
MOJ,LAA,17/10/18,Civil Representation,LEGAL AID FUND,DUNCAN LEWIS SOLICITORS  LTD,1569255:3000001899690008,28183.85, Legal Aid Civil Representation ,
MOJ,LAA,17/10/18,Higher Crime,LEGAL AID FUND,EDWARDS DUTHIE,1570206:150664414,36666.09, Legal Aid Higher Crime ,
MOJ,LAA,17/10/18,Civil Representation,LEGAL AID FUND,EDWARDS DUTHIE,1570206:3000003363050008,29079.67, Legal Aid Civil Representation ,
MOJ,LAA,17/10/18,Higher Crime,LEGAL AID FUND,ELLIOTT STERN SOLICITORS,1569262:150646218,105857.75, Legal Aid Higher Crime ,
MOJ,LAA,17/10/18,Civil Representation,LEGAL AID FUND,FOSTER & FOSTER,1570517:150635283,26332.98, Legal Aid Civil Representation ,
MOJ,LAA,17/10/18,Civil Representation,LEGAL AID FUND,GARY JACOBS & CO LTD,1568633:3000003136350008,25415.43, Legal Aid Civil Representation ,
MOJ,LAA,17/10/18,Higher Crime,LEGAL AID FUND,GAVIN A DOIG,1567847:150663496,52785.6, Legal Aid Higher Crime ,
MOJ,LAA,17/10/18,Higher Crime,LEGAL AID FUND,GILES F COCKINGS,1568861:150629410,69575.82, Legal Aid Higher Crime ,
MOJ,LAA,17/10/18,Higher Crime,LEGAL AID FUND,GILES F COCKINGS,1568861:150629400,-33744, Legal Aid Higher Crime ,
MOJ,LAA,17/10/18,Civil Representation,LEGAL AID FUND,GOLDSTONES SOLICITORS LTD,1566775:3000001952560006,31880.36, Legal Aid Civil Representation ,
MOJ,LAA,17/10/18,Civil Representation,LEGAL AID FUND,GOLDSTONES SOLICITORS LTD,1566775:3000001952560005RC,-33866.16, Legal Aid Civil Representation ,
MOJ,LAA,17/10/18,Higher Crime,LEGAL AID FUND,HARWOOD SOLICITORS,1566543:150646184,104889.23, Legal Aid Higher Crime ,
MOJ,LAA,17/10/18,Higher Crime,LEGAL AID FUND,HENNESSY & HAMMUDI,1570109:150646783,32946.17, Legal Aid Higher Crime ,
MOJ,LAA,17/10/18,Higher Crime,LEGAL AID FUND,HODGE JONES & ALLEN LLP,1566782:150621315,35169.52, Legal Aid Higher Crime ,
MOJ,LAA,17/10/18,Higher Crime,LEGAL AID FUND,HURRAIRAH HARRIS SOLICITORS,1566758:150637134,26088.38, Legal Aid Higher Crime ,
MOJ,LAA,17/10/18,Higher Crime,LEGAL AID FUND,I B B SOLICITORS,1569779:150621262,44976.38, Legal Aid Higher Crime ,
MOJ,LAA,17/10/18,Higher Crime,LEGAL AID FUND,IMRAN KHAN & PARTNERS,1570154:150663823,89975.11, Legal Aid Higher Crime ,
MOJ,LAA,17/10/18,Higher Crime,LEGAL AID FUND,J D SPICER ZEB,1566784:150637570,87602.34, Legal Aid Higher Crime ,
MOJ,LAA,17/10/18,Civil Representation,LEGAL AID FUND,J D SPICER ZEB,1566784:3000002323880005,29012.22, Legal Aid Civil Representation ,
MOJ,LAA,17/10/18,Civil Representation,LEGAL AID FUND,JANE WHEATLEY,1567372:3000002246230023,40463.28, Legal Aid Civil Representation ,
MOJ,LAA,17/10/18,Higher Crime,LEGAL AID FUND,JANES SOLICITORS,1567189:150646187,105857.75, Legal Aid Higher Crime ,
MOJ,LAA,17/10/18,Higher Crime,LEGAL AID FUND,JERMAN SAMUELS & PEARSON LLP,1567311:150620629,89975.11, Legal Aid Higher Crime ,
MOJ,LAA,17/10/18,Higher Crime,LEGAL AID FUND,JERMAN SAMUELS & PEARSON LLP,1567311:150620773,72713.37, Legal Aid Higher Crime ,
MOJ,LAA,17/10/18,Higher Crime,LEGAL AID FUND,JERMAN SAMUELS & PEARSON LLP,1567311:150620757,-72713.37, Legal Aid Higher Crime ,
MOJ,LAA,17/10/18,Higher Crime,LEGAL AID FUND,JOEL N BENNATHAN QC,1567068:150629030,37715.75, Legal Aid Higher Crime ,
MOJ,LAA,17/10/18,Higher Crime,LEGAL AID FUND,JONATHAN A C HIGGS QC,1569693:150629097,61035.2, Legal Aid Higher Crime ,
MOJ,LAA,17/10/18,Higher Crime,LEGAL AID FUND,JOSEPH HILL & CO,1568283:150629618,34311.85, Legal Aid Higher Crime ,
MOJ,LAA,17/10/18,Higher Crime,LEGAL AID FUND,K LEGAL SOLICITORS,1566708:150663578,28672.94, Legal Aid Higher Crime ,
MOJ,LAA,17/10/18,Civil Representation,LEGAL AID FUND,KATE TOMPKINS,1569164:3000001681400029,33912, Legal Aid Civil Representation ,
MOJ,LAA,17/10/18,Higher Crime,LEGAL AID FUND,KELCEY & HALL SOLICITORS,1568297:150630337,29664.55, Legal Aid Higher Crime ,
MOJ,LAA,17/10/18,Higher Crime,LEGAL AID FUND,KRISTINA HARRISON SOLICITORS,1566823:150645982,85810.99, Legal Aid Higher Crime ,
MOJ,LAA,17/10/18,Higher Crime,LEGAL AID FUND,LANSBURY WORTHINGTON LTD,1567553:150663733,37791.76, Legal Aid Higher Crime ,
MOJ,LAA,17/10/18,Higher Crime,LEGAL AID FUND,LAWRENCE & CO SOLICITORS CDS LLP,1568284:150663931,46440.85, Legal Aid Higher Crime ,
MOJ,LAA,17/10/18,Higher Crime,LEGAL AID FUND,LOUIS C FRENCH,1567126:150637173,29587.8, Legal Aid Higher Crime ,
MOJ,LAA,17/10/18,Higher Crime,LEGAL AID FUND,MBC SOLICITORS LTD,1566681:150637849,89975.11, Legal Aid Higher Crime ,
MOJ,LAA,17/10/18,Higher Crime,LEGAL AID FUND,MBC SOLICITORS LTD,1570114:150646180,42811, Legal Aid Higher Crime ,
MOJ,LAA,17/10/18,Higher Crime,LEGAL AID FUND,MBC SOLICITORS LTD,1566681:150637861,-55089.21, Legal Aid Higher Crime ,
MOJ,LAA,17/10/18,Higher Crime,LEGAL AID FUND,MCCORMICKS,1568924:150621705,89972.58, Legal Aid Higher Crime ,
MOJ,LAA,17/10/18,Higher Crime,LEGAL AID FUND,MI LAW,1566555:150629301,89975.11, Legal Aid Higher Crime ,
MOJ,LAA,17/10/18,Civil Representation,LEGAL AID FUND,NATIONAL LEGAL SERVICE LTD,1568722:3000002054470003,25940.22, Legal Aid Civil Representation ,
MOJ,LAA,17/10/18,Higher Crime,LEGAL AID FUND,NICHOLAS M BARRACLOUGH,1570016:150669233,72199.99, Legal Aid Higher Crime ,
MOJ,LAA,17/10/18,Higher Crime,LEGAL AID FUND,NICK BONEHILL,1567069:150630270,30998.78, Legal Aid Higher Crime ,
MOJ,LAA,17/10/18,Civil Representation,LEGAL AID FUND,OSBORNE & CO SOLICITORS,1569177:150633507,27159.63, Legal Aid Civil Representation ,
MOJ,LAA,17/10/18,Higher Crime,LEGAL AID FUND,QUINN MELVILLE,1569225:150620789,26698.09, Legal Aid Higher Crime ,
MOJ,LAA,17/10/18,Civil Representation,LEGAL AID FUND,RAILTON SOLICITORS,1568915:3000002117720005,25245.75, Legal Aid Civil Representation ,
MOJ,LAA,17/10/18,Civil Representation,LEGAL AID FUND,REEDS SOLICITORS LTD,1569599:3000000942580015,36005.46, Legal Aid Civil Representation ,
MOJ,LAA,17/10/18,Higher Crime,LEGAL AID FUND,REEDS SOLICITORS LTD-ADVOCATE,1568146:150621439,38394.91, Legal Aid Higher Crime ,
MOJ,LAA,17/10/18,Higher Crime,LEGAL AID FUND,RH LAW LLP,1567177:150645765,89975.11, Legal Aid Higher Crime ,
MOJ,LAA,17/10/18,Higher Crime,LEGAL AID FUND,RICHARD H CHRISTIE QC,1569376:150668658,143680, Legal Aid Higher Crime ,
MOJ,LAA,17/10/18,Higher Crime,LEGAL AID FUND,ROBERT LIZAR,1567214:150638299,101510.33, Legal Aid Higher Crime ,
MOJ,LAA,17/10/18,Higher Crime,LEGAL AID FUND,ROBERT LIZAR,1567214:150637072,44769.47, Legal Aid Higher Crime ,
MOJ,LAA,17/10/18,Higher Crime,LEGAL AID FUND,ROLAND ROBINSONS AND FENTONS LLP,1567171:150663588,33861.44, Legal Aid Higher Crime ,
MOJ,LAA,17/10/18,Higher Crime,LEGAL AID FUND,S SATHA & CO LTD,1567980:150663623,89975.11, Legal Aid Higher Crime ,
MOJ,LAA,17/10/18,Higher Crime,LEGAL AID FUND,SAK SOLICITORS,1566532:150621843,89975.11, Legal Aid Higher Crime ,
MOJ,LAA,17/10/18,Civil Representation,LEGAL AID FUND,SALLY WILCOCK & CO,1570087:150617497,25182.65, Legal Aid Civil Representation ,
MOJ,LAA,17/10/18,Higher Crime,LEGAL AID FUND,SCANLANS,1567935:150664456,62017.19, Legal Aid Higher Crime ,
MOJ,LAA,17/10/18,Higher Crime,LEGAL AID FUND,SHEARMAN BOWEN & CO,1568960:150646281,127029.3, Legal Aid Higher Crime ,
MOJ,LAA,17/10/18,Civil Representation,LEGAL AID FUND,SHELTER.,1569862:3000001334350017,25125.14, Legal Aid Civil Representation ,
MOJ,LAA,17/10/18,Higher Crime,LEGAL AID FUND,SILLS & BETTERIDGE LLP,1568620:150646198,30967.84, Legal Aid Higher Crime ,
MOJ,LAA,17/10/18,Civil Representation,LEGAL AID FUND,SIMON J S POVOAS,1569689:3000002290270012,25649.1, Legal Aid Civil Representation ,
MOJ,LAA,17/10/18,Higher Crime,LEGAL AID FUND,SIMON P W CHRISTIE,1569687:150630095,35488.56, Legal Aid Higher Crime ,
MOJ,LAA,17/10/18,Legal Help,LEGAL AID FUND,SIMPSON MILLAR SOLICITORS LLP,1566730:150634024,106688.64, Legal Aid Legal Help ,
MOJ,LAA,17/10/18,Civil Representation,LEGAL AID FUND,STEPHEN CHIPPECK,1569975:3000002334140031,51159.6, Legal Aid Civil Representation ,
MOJ,LAA,17/10/18,Civil Representation,LEGAL AID FUND,STEPHEN CHIPPECK,1569975:3000002284310010,33324.22, Legal Aid Civil Representation ,
MOJ,LAA,17/10/18,Civil Representation,LEGAL AID FUND,STEPHEN CHIPPECK,1569975:3000002846760008,30553.2, Legal Aid Civil Representation ,
MOJ,LAA,17/10/18,Higher Crime,LEGAL AID FUND,STEPHENSONS SOLICITORS LLP,1567176:150646232,107574.07, Legal Aid Higher Crime ,
MOJ,LAA,17/10/18,Higher Crime,LEGAL AID FUND,STOKOE PARTNERSHIP,1570227:150620901,64645.2, Legal Aid Higher Crime ,
MOJ,LAA,17/10/18,Higher Crime,LEGAL AID FUND,STOKOE PARTNERSHIP,1570227:150664404,62126.83, Legal Aid Higher Crime ,
MOJ,LAA,17/10/18,Higher Crime,LEGAL AID FUND,STOKOE PARTNERSHIP,1570227:150663737,38536.11, Legal Aid Higher Crime ,
MOJ,LAA,17/10/18,Higher Crime,LEGAL AID FUND,SWEETMAN BURKE & SINKER,1570554:150629242,60441.08, Legal Aid Higher Crime ,
MOJ,LAA,17/10/18,Civil Representation,LEGAL AID FUND,SYMES BAINS BROOMER,1568274:3000001832880020,32081.68, Legal Aid Civil Representation ,
MOJ,LAA,17/10/18,Civil Representation,LEGAL AID FUND,TEMPERLEY TAYLOR LLP,1568775:3000001027200020,29543.26, Legal Aid Civil Representation ,
MOJ,LAA,17/10/18,Higher Crime,LEGAL AID FUND,TUCKERS SOLICITORS LLP,1567558:150646824,60258.43, Legal Aid Higher Crime ,
MOJ,LAA,17/10/18,Higher Crime,LEGAL AID FUND,TUCKERS SOLICITORS LLP,1567558:150663903,40840.31, Legal Aid Higher Crime ,
MOJ,LAA,17/10/18,Higher Crime,LEGAL AID FUND,TYLER HOFFMAN LTD,1567253:150646261,94944.09, Legal Aid Higher Crime ,
MOJ,LAA,17/10/18,Higher Crime,LEGAL AID FUND,VIENNA KANG ADVOCATES LTD,1567315:150646202,107970.13, Legal Aid Higher Crime ,
MOJ,LAA,17/10/18,Higher Crime,LEGAL AID FUND,VYMAN SOLICITORS LTD,1569522:150637889,25077.19, Legal Aid Higher Crime ,
MOJ,LAA,17/10/18,Higher Crime,LEGAL AID FUND,WARWICK VESEY'S,1570111:150646248,68560.95, Legal Aid Higher Crime ,
MOJ,LAA,17/10/18,Higher Crime,LEGAL AID FUND,WHITELOCK & STORR,1569859:150620826,67481.33, Legal Aid Higher Crime ,
MOJ,LAA,17/10/18,Higher Crime,LEGAL AID FUND,WILFORD SMITH & CO LTD,1569486:150629113,29664.55, Legal Aid Higher Crime ,
MOJ,LAA,17/10/18,Higher Crime,LEGAL AID FUND,WILLIAMSONS SOLICITORS LTD,1567569:150630398,37474.85, Legal Aid Higher Crime ,
MOJ,LAA,17/10/18,Higher Crime,LEGAL AID FUND,WILSON DEVONALD GRIFFITHS JOHN,1568981:150637740,81506.69, Legal Aid Higher Crime ,
MOJ,LAA,17/10/18,Civil Representation,LEGAL AID FUND,ZERMANSKY & PARTNERS,1568291:3000002625560023,29875.28, Legal Aid Civil Representation ,
MOJ,LAA,19/10/18,EXP - PURCHASE OF GOODS/SERVICES - SUPPORT - HOSTING,ISD Management and Admin.,REDCENTRIC SOLUTIONS LTD,251050,58543.8, IT Costs ,
MOJ,LAA,19/10/18,EXP - PURCHASE OF GOODS/SERVICES - SUPPORT - HOSTING,ISD Management and Admin.,REDCENTRIC SOLUTIONS LTD,252789,58543.8, IT Costs ,
MOJ,LAA,19/10/18,Civil Representation,LEGAL AID FUND,WILLIAM J TYLER,1570907:3000001668160008RC,-55015.2, Legal Aid Civil Representation ,
MOJ,LAA,22/10/18,EXP - PURCHASE OF GOODS/SERVICES - OTHER - Translation / Interpreting Services,Central Funds,CLARION INTERPRETING LTD,59597,32500.02, Translation / Interpreting Services Costs ,
MOJ,LAA,22/10/18,Civil Representation,LEGAL AID FUND,BEN MANSFIELD,1570911:3000002321250008RC,-26699.02, Legal Aid Civil Representation ,
MOJ,LAA,24/10/18,EXP - PURCHASE OF GOODS/SERVICES - SUPPORT - OTHER,ISD Management and Admin.,REDROCK CONSULTING LTD,8027,50900, IT Costs ,
MOJ,LAA,24/10/18,Higher Crime,LEGAL AID FUND,ABRAHAMS LAW LTD,1571607:150681652,102785.24, Legal Aid Higher Crime ,
MOJ,LAA,24/10/18,Higher Crime,LEGAL AID FUND,ACHOM & PARTNERS,1571189:150672884,26017.28, Legal Aid Higher Crime ,
MOJ,LAA,24/10/18,Higher Crime,LEGAL AID FUND,ALEXANDER BENNETT,1574536:150699225,52296.82, Legal Aid Higher Crime ,
MOJ,LAA,24/10/18,Higher Crime,LEGAL AID FUND,ALI N BAJWA QC,1572275:150671623,74206.88, Legal Aid Higher Crime ,
MOJ,LAA,24/10/18,Higher Crime,LEGAL AID FUND,ALI N BAJWA QC,1572275:150671582,-94852.14, Legal Aid Higher Crime ,
MOJ,LAA,24/10/18,Civil Representation,LEGAL AID FUND,ALISON BALL QC,1573600:3000003814720022,32432.4, Legal Aid Civil Representation ,
MOJ,LAA,24/10/18,Higher Crime,LEGAL AID FUND,ALTAF SOLICITORS LTD,1574757:150716967,89975.11, Legal Aid Higher Crime ,
MOJ,LAA,24/10/18,Higher Crime,LEGAL AID FUND,ANDREW J JEBB,1574233:150672161,25560.36, Legal Aid Higher Crime ,
MOJ,LAA,24/10/18,Higher Crime,LEGAL AID FUND,ASHCOTT SOLICITORS LTD,1571161:150672738,78374.4, Legal Aid Higher Crime ,
MOJ,LAA,24/10/18,Civil Representation,LEGAL AID FUND,ATKINS HOPE SOLICITORS LTD,1574422:3000001161500010,32043.83, Legal Aid Civil Representation ,
MOJ,LAA,24/10/18,Higher Crime,LEGAL AID FUND,AYESHA N SMART,1571722:150717811,28517.4, Legal Aid Higher Crime ,
MOJ,LAA,24/10/18,Civil Representation,LEGAL AID FUND,BATES & MOUNTAIN,1572778:3000002482910035,28481.84, Legal Aid Civil Representation ,
MOJ,LAA,24/10/18,Civil Representation,LEGAL AID FUND,BATES & MOUNTAIN,1572778:3000002482910036,28481.84, Legal Aid Civil Representation ,
MOJ,LAA,24/10/18,Civil Representation,LEGAL AID FUND,BDH SOLICITORS LTD,1572006:3000001932980011,29798.22, Legal Aid Civil Representation ,
MOJ,LAA,24/10/18,Civil Representation,LEGAL AID FUND,BLACKHURST BUDD LTD,1571643:150686338,40938.82, Legal Aid Civil Representation ,
MOJ,LAA,24/10/18,Higher Crime,LEGAL AID FUND,BLACKWELLS,1574039:150681506,52704.13, Legal Aid Higher Crime ,
MOJ,LAA,24/10/18,Civil Representation,LEGAL AID FUND,BROADBENTS SOLICITORS LLP,1574027:3000003673140006,27648, Legal Aid Civil Representation ,
MOJ,LAA,24/10/18,Higher Crime,LEGAL AID FUND,CARTWRIGHT KING LTD,1573986:150672479,126851.3, Legal Aid Higher Crime ,
MOJ,LAA,24/10/18,Civil Representation,LEGAL AID FUND,CARTWRIGHT KING LTD,1573983:150712176,26446.18, Legal Aid Civil Representation ,
MOJ,LAA,24/10/18,Higher Crime,LEGAL AID FUND,COBLEYS SOLICITORS LTD,1573679:150718285,29341.79, Legal Aid Higher Crime ,
MOJ,LAA,24/10/18,Higher Crime,LEGAL AID FUND,CRAIG L HARRIS,1573297:150717678,39140.52, Legal Aid Higher Crime ,
MOJ,LAA,24/10/18,Higher Crime,LEGAL AID FUND,DAVID  MILLER,1574129:150671995,37418.04, Legal Aid Higher Crime ,
MOJ,LAA,24/10/18,Civil Representation,LEGAL AID FUND,DAVID WILSON SOLICITORS,1573137:3000000960530010,43513.47, Legal Aid Civil Representation ,
MOJ,LAA,24/10/18,Higher Crime,LEGAL AID FUND,DEXTER HENRY & CO,1571254:150672246,29745.56, Legal Aid Higher Crime ,
MOJ,LAA,24/10/18,Higher Crime,LEGAL AID FUND,DPP LAW LTD,1574669:150671742,34033.59, Legal Aid Higher Crime ,
MOJ,LAA,24/10/18,Civil Representation,LEGAL AID FUND,DUNCAN LEWIS SOLICITORS  LTD,1573713:150692604,26809.26, Legal Aid Civil Representation ,
MOJ,LAA,24/10/18,Higher Crime,LEGAL AID FUND,FARLEYS SOLICITORS LLP,1572102:150672631,97171.85, Legal Aid Higher Crime ,
MOJ,LAA,24/10/18,Higher Crime,LEGAL AID FUND,FMW LAW LTD,1571217:150699322,107574.07, Legal Aid Higher Crime ,
MOJ,LAA,24/10/18,Higher Crime,LEGAL AID FUND,FMW LAW LTD,1571217:150698798,39735.46, Legal Aid Higher Crime ,
MOJ,LAA,24/10/18,Higher Crime,LEGAL AID FUND,FORBES SOLICITORS,1573467:150672532,105857.75, Legal Aid Higher Crime ,
MOJ,LAA,24/10/18,Higher Crime,LEGAL AID FUND,FORBES SOLICITORS,1573467:150671687,59143.26, Legal Aid Higher Crime ,
MOJ,LAA,24/10/18,Higher Crime,LEGAL AID FUND,GALBRAITH BRANLEY SOLICITORS,1573133:150699136,89975.11, Legal Aid Higher Crime ,
MOJ,LAA,24/10/18,Civil Representation,LEGAL AID FUND,GLAISYERS LLP,1574020:3000002373890020,57866.4, Legal Aid Civil Representation ,
MOJ,LAA,24/10/18,Higher Crime,LEGAL AID FUND,GOLDKORNS,1571107:150672560,51220.74, Legal Aid Higher Crime ,
MOJ,LAA,24/10/18,Higher Crime,LEGAL AID FUND,GOLDMAN BAILEY SOLICITORS,1574753:150672734,36380.15, Legal Aid Higher Crime ,
MOJ,LAA,24/10/18,Civil Representation,LEGAL AID FUND,GREENS SOLICITORS LTD,1572769:3000002956770025,27810.04, Legal Aid Civil Representation ,
MOJ,LAA,24/10/18,Higher Crime,LEGAL AID FUND,HALLINAN BLACKBURN GITTINGS & NOTT LLP,1574415:150716590,32979.89, Legal Aid Higher Crime ,
MOJ,LAA,24/10/18,Higher Crime,LEGAL AID FUND,HARRIS SOLICITORS LTD,1571167:150698182,89975.11, Legal Aid Higher Crime ,
MOJ,LAA,24/10/18,Higher Crime,LEGAL AID FUND,HARWOOD SOLICITORS,1571356:150717619,26836.07, Legal Aid Higher Crime ,
MOJ,LAA,24/10/18,Higher Crime,LEGAL AID FUND,HILL TWINE,1574569:150699354,26464.44, Legal Aid Higher Crime ,
MOJ,LAA,24/10/18,Higher Crime,LEGAL AID FUND,HODGE JONES & ALLEN LLP,1574831:150698491,36569.77, Legal Aid Higher Crime ,
MOJ,LAA,24/10/18,Higher Crime,LEGAL AID FUND,HURRAIRAH HARRIS SOLICITORS,1571157:150681664,107967.1, Legal Aid Higher Crime ,
MOJ,LAA,24/10/18,Civil Representation,LEGAL AID FUND,JEREMY J HALL,1573018:3000001485450019,30207.42, Legal Aid Civil Representation ,
MOJ,LAA,24/10/18,Higher Crime,LEGAL AID FUND,JMW SOLICITORS LLP,1571602:150714073,116070.32, Legal Aid Higher Crime ,
MOJ,LAA,24/10/18,Higher Crime,LEGAL AID FUND,JOHN BLACK SOLICITORS LTD,1574354:150717103,35597.46, Legal Aid Higher Crime ,
MOJ,LAA,24/10/18,Higher Crime,LEGAL AID FUND,JONAS ROY BLOOM,1574013:150689780,29664.55, Legal Aid Higher Crime ,
MOJ,LAA,24/10/18,Civil Representation,LEGAL AID FUND,JULIE E SPARROW,1573877:150415753,26179.2, Legal Aid Civil Representation ,
MOJ,LAA,24/10/18,Civil Representation,LEGAL AID FUND,JULIE E SPARROW,1573877:150415863,-28627.79, Legal Aid Civil Representation ,
MOJ,LAA,24/10/18,Higher Crime,LEGAL AID FUND,JUSTIN B K RIVETT,1573790:150723608,72199.99, Legal Aid Higher Crime ,
MOJ,LAA,24/10/18,Higher Crime,LEGAL AID FUND,K LEGAL SOLICITORS,1571518:150672118,27329.65, Legal Aid Higher Crime ,
MOJ,LAA,24/10/18,Civil Representation,LEGAL AID FUND,KARL J ROWLEY,1572320:3000003309170019,57284.1, Legal Aid Civil Representation ,
MOJ,LAA,24/10/18,Higher Crime,LEGAL AID FUND,KELCEY & HALL SOLICITORS,1572744:150699292,34162.72, Legal Aid Higher Crime ,
MOJ,LAA,24/10/18,Civil Representation,LEGAL AID FUND,KEVIN SHEARN FAMILY LAW PRACTICE LTD,1571149:3000001941890033,35190.97, Legal Aid Civil Representation ,
MOJ,LAA,24/10/18,Higher Crime,LEGAL AID FUND,KINGSMAN SOLICITORS LTD,1572088:150681905,65378.4, Legal Aid Higher Crime ,
MOJ,LAA,24/10/18,Higher Crime,LEGAL AID FUND,L JOHN HURLOCK,1571068:150671548,28700.16, Legal Aid Higher Crime ,
MOJ,LAA,24/10/18,Civil Representation,LEGAL AID FUND,LEIGH DAY & CO,1574327:150721587,27379.03, Legal Aid Civil Representation ,
MOJ,LAA,24/10/18,Higher Crime,LEGAL AID FUND,LEWIS NEDAS LAW LTD,1574791:150671724,69140.97, Legal Aid Higher Crime ,
MOJ,LAA,24/10/18,Higher Crime,LEGAL AID FUND,LEWIS NEDAS LAW LTD,1574791:150698184,49702.62, Legal Aid Higher Crime ,
MOJ,LAA,24/10/18,Higher Crime,LEGAL AID FUND,LEWIS NEDAS LAW LTD,1572118:150681638,48528.52, Legal Aid Higher Crime ,
MOJ,LAA,24/10/18,Higher Crime,LEGAL AID FUND,LLOYDS PR SOLICITORS,1573980:150681810,67674.77, Legal Aid Higher Crime ,
MOJ,LAA,24/10/18,Higher Crime,LEGAL AID FUND,LONDONIUM SOLICITORS,1572083:150689071,89975.11, Legal Aid Higher Crime ,
MOJ,LAA,24/10/18,Higher Crime,LEGAL AID FUND,M B LAW LTD,1574705:150698934,26055.23, Legal Aid Higher Crime ,
MOJ,LAA,24/10/18,Higher Crime,LEGAL AID FUND,M I SOLICITORS,1572108:150681585,46204.24, Legal Aid Higher Crime ,
MOJ,LAA,24/10/18,Higher Crime,LEGAL AID FUND,M K LAW SOLICITORS LTD,1573255:150672473,71545.9, Legal Aid Higher Crime ,
MOJ,LAA,24/10/18,Higher Crime,LEGAL AID FUND,M K LAW SOLICITORS LTD,1571153:150671590,56911.75, Legal Aid Higher Crime ,
MOJ,LAA,24/10/18,Higher Crime,LEGAL AID FUND,MANN & CO SOLICITORS LTD,1573444:150699181,89975.11, Legal Aid Higher Crime ,
MOJ,LAA,24/10/18,Higher Crime,LEGAL AID FUND,MANN & CO SOLICITORS LTD,1573444:150718115,89853.47, Legal Aid Higher Crime ,
MOJ,LAA,24/10/18,Higher Crime,LEGAL AID FUND,MARTIN R MCCARTHY,1574654:150699478,28754.16, Legal Aid Higher Crime ,
MOJ,LAA,24/10/18,Higher Crime,LEGAL AID FUND,MCKENZIE BELL,1572030:150672538,29664.55, Legal Aid Higher Crime ,
MOJ,LAA,24/10/18,Higher Crime,LEGAL AID FUND,MCMILLAN WILLIAMS SOLICITORS LTD,1571215:150681184,37631.85, Legal Aid Higher Crime ,
MOJ,LAA,24/10/18,Higher Crime,LEGAL AID FUND,MEIKLES SOLICITORS LLP,1572372:150717503,44854.59, Legal Aid Higher Crime ,
MOJ,LAA,24/10/18,Higher Crime,LEGAL AID FUND,MESSRS WATERFORDS SOLICITORS,1571240:150681690,107592.95, Legal Aid Higher Crime ,
MOJ,LAA,24/10/18,Higher Crime,LEGAL AID FUND,MICHAEL F A BORELLI QC,1574662:150671448,67633.46, Legal Aid Higher Crime ,
MOJ,LAA,24/10/18,Higher Crime,LEGAL AID FUND,MORDI & CO,1573759:150672590,77188.12, Legal Aid Higher Crime ,
MOJ,LAA,24/10/18,Higher Crime,LEGAL AID FUND,MORGAN HAS SOLICITORS,1572484:150689031,53787.04, Legal Aid Higher Crime ,
MOJ,LAA,24/10/18,Higher Crime,LEGAL AID FUND,MPR SOLICITORS LLP,1573086:150717970,89975.11, Legal Aid Higher Crime ,
MOJ,LAA,24/10/18,Higher Crime,LEGAL AID FUND,MURRAYS PARTNERSHIP SOLICITORS,1571630:150699231,87341.14, Legal Aid Higher Crime ,
MOJ,LAA,24/10/18,Higher Crime,LEGAL AID FUND,NICHOLAS JAMES,1573324:150672229,32209.68, Legal Aid Higher Crime ,
MOJ,LAA,24/10/18,Civil Representation,LEGAL AID FUND,OSBORNES SOLICITORS LLP,1574417:3000001305210013,38210.33, Legal Aid Civil Representation ,
MOJ,LAA,24/10/18,Civil Representation,LEGAL AID FUND,OWEN WHITE & CATLIN,1574080:3000000913690026,28445.72, Legal Aid Civil Representation ,
MOJ,LAA,24/10/18,Higher Crime,LEGAL AID FUND,PARKER BIRD WHITELEY,1574353:150688756,45073.6, Legal Aid Higher Crime ,
MOJ,LAA,24/10/18,Civil Representation,LEGAL AID FUND,PATRICK LAWRENCE PARTNERSHIP LLP,1573459:3000002284310011,30885.3, Legal Aid Civil Representation ,
MOJ,LAA,24/10/18,Higher Crime,LEGAL AID FUND,PAUL C REID QC,1573864:150717835,28667.77, Legal Aid Higher Crime ,
MOJ,LAA,24/10/18,Higher Crime,LEGAL AID FUND,PAUL CROWLEY & CO SOLICITORS LTD,1573711:150716596,30107.19, Legal Aid Higher Crime ,
MOJ,LAA,24/10/18,Civil Representation,LEGAL AID FUND,PAULINE M MOULDER,1574216:3000002789790004,40223.98, Legal Aid Civil Representation ,
MOJ,LAA,24/10/18,Civil Representation,LEGAL AID FUND,PHILIP NEWTON,1573017:150151991,88924.85, Legal Aid Civil Representation ,
MOJ,LAA,24/10/18,Higher Crime,LEGAL AID FUND,POWELL SPENCER AND PARTNERS,1574834:150672623,74241.86, Legal Aid Higher Crime ,
MOJ,LAA,24/10/18,Lower Crime,LEGAL AID FUND,PURCELL PARKER LTD,1573140:150713135,106700, Legal Aid Lower Crime ,
MOJ,LAA,24/10/18,Civil Representation,LEGAL AID FUND,RACHEL A LANGDALE QC,1571449:3000002261120004,70243.2, Legal Aid Civil Representation ,
MOJ,LAA,24/10/18,Civil Representation,LEGAL AID FUND,RASHID & CO SOLICITORS LTD,1573672:3000001689400030,30553.22, Legal Aid Civil Representation ,
MOJ,LAA,24/10/18,Higher Crime,LEGAL AID FUND,RICHARD FISHER,1571070:150696259,41000, Legal Aid Higher Crime ,
MOJ,LAA,24/10/18,Civil Representation,LEGAL AID FUND,RICHARD O ALOMO,1573536:150624084,29430, Legal Aid Civil Representation ,
MOJ,LAA,24/10/18,Civil Representation,LEGAL AID FUND,RICHARD O ALOMO,1573536:150624085,-30607.2, Legal Aid Civil Representation ,
MOJ,LAA,24/10/18,Higher Crime,LEGAL AID FUND,ROBERTSON'S SOLICITORS,1572720:150717304,49491.23, Legal Aid Higher Crime ,
MOJ,LAA,24/10/18,Higher Crime,LEGAL AID FUND,ROXANNE T MORRELL,1574638:150724824,48440, Legal Aid Higher Crime ,
MOJ,LAA,24/10/18,Higher Crime,LEGAL AID FUND,S A LAW CHAMBERS SOLICITORS,1573736:150689344,31089.83, Legal Aid Higher Crime ,
MOJ,LAA,24/10/18,Higher Crime,LEGAL AID FUND,SALLY J ONEILL QC,1573306:150717365,48734.36, Legal Aid Higher Crime ,
MOJ,LAA,24/10/18,Higher Crime,LEGAL AID FUND,SALLY J ONEILL QC,1573306:150717331,-28195.2, Legal Aid Higher Crime ,
MOJ,LAA,24/10/18,Higher Crime,LEGAL AID FUND,SHAHID ALI & CO SOLICITORS,1571347:150681016,89975.11, Legal Aid Higher Crime ,
MOJ,LAA,24/10/18,Higher Crime,LEGAL AID FUND,SHEARMAN BOWEN & CO,1573397:150699317,105857.75, Legal Aid Higher Crime ,
MOJ,LAA,24/10/18,Higher Crime,LEGAL AID FUND,SHEARMAN BOWEN & CO,1573397:150689122,97477.8, Legal Aid Higher Crime ,
MOJ,LAA,24/10/18,Higher Crime,LEGAL AID FUND,SMITH PARTNERSHIP,1574031:150681010,42575.94, Legal Aid Higher Crime ,
MOJ,LAA,24/10/18,Higher Crime,LEGAL AID FUND,SONN MACMILLAN WALKER LTD,1574079:150698938,89975.11, Legal Aid Higher Crime ,
MOJ,LAA,24/10/18,Higher Crime,LEGAL AID FUND,STEPHEN F HARVEY QC,1573865:150672939,62361.38, Legal Aid Higher Crime ,
MOJ,LAA,24/10/18,Higher Crime,LEGAL AID FUND,STUART MILLER SOLICITORS LTD,1571986:150688897,36453.48, Legal Aid Higher Crime ,
MOJ,LAA,24/10/18,Higher Crime,LEGAL AID FUND,SUNDIP MURRIA SOLICITORS,1574320:150698599,40580.64, Legal Aid Higher Crime ,
MOJ,LAA,24/10/18,Civil Representation,LEGAL AID FUND,SUSAN A SHACKLEFORD,1573633:3000001831080003,31990.2, Legal Aid Civil Representation ,
MOJ,LAA,24/10/18,Higher Crime,LEGAL AID FUND,SVS SOLICITORS,1574752:150699235,73102.78, Legal Aid Higher Crime ,
MOJ,LAA,24/10/18,Civil Representation,LEGAL AID FUND,SWITALSKI'S SOLICITORS LTD,1572345:3000002148010010,41367.78, Legal Aid Civil Representation ,
MOJ,LAA,24/10/18,Civil Representation,LEGAL AID FUND,SWITALSKI'S SOLICITORS LTD,1574741:3000003375580008,31236.87, Legal Aid Civil Representation ,
MOJ,LAA,24/10/18,Civil Representation,LEGAL AID FUND,SWITALSKI'S SOLICITORS LTD,1572345:3000002148010009RC,-30853.2, Legal Aid Civil Representation ,
MOJ,LAA,24/10/18,Higher Crime,LEGAL AID FUND,TAYLOR GOODCHILD LTD,1571102:150672544,107970.13, Legal Aid Higher Crime ,
MOJ,LAA,24/10/18,Legal Help,LEGAL AID FUND,THE COMMUNITY LAW PARTNERSHIP LTD,1573743:150714160,29106.54, Legal Aid Legal Help ,
MOJ,LAA,24/10/18,Higher Crime,LEGAL AID FUND,THE JOHNSON PARTNERSHIP,1572781:150690215,89975.11, Legal Aid Higher Crime ,
MOJ,LAA,24/10/18,Higher Crime,LEGAL AID FUND,THOMAS PRICE QC,1572277:150671743,28990.48, Legal Aid Higher Crime ,
MOJ,LAA,24/10/18,Higher Crime,LEGAL AID FUND,TILDENS LTD,1572130:150672481,89975.11, Legal Aid Higher Crime ,
MOJ,LAA,24/10/18,Higher Crime,LEGAL AID FUND,TIMOTHY A FORTE,1571045:150724709,31140, Legal Aid Higher Crime ,
MOJ,LAA,24/10/18,Higher Crime,LEGAL AID FUND,TOSSWILL & CO,1573456:150671541,89975.11, Legal Aid Higher Crime ,
MOJ,LAA,24/10/18,Civil Representation,LEGAL AID FUND,TRACY LAKIN,1571894:3000002923410018,50079.6, Legal Aid Civil Representation ,
MOJ,LAA,24/10/18,Higher Crime,LEGAL AID FUND,TUDUR OWEN ROBERTS GLYNNE & CO,1573442:150698323,40357.96, Legal Aid Higher Crime ,
MOJ,LAA,24/10/18,Higher Crime,LEGAL AID FUND,TYRONE G SMITH,1572276:150716914,26008.88, Legal Aid Higher Crime ,
MOJ,LAA,24/10/18,Civil Representation,LEGAL AID FUND,VANESSA V MEACHIN QC,1573952:3000002941650013,37593.6, Legal Aid Civil Representation ,
MOJ,LAA,24/10/18,Higher Crime,LEGAL AID FUND,VYMAN SOLICITORS LTD,1573979:150680938,66866.42, Legal Aid Higher Crime ,
MOJ,LAA,24/10/18,Higher Crime,LEGAL AID FUND,VYMAN SOLICITORS LTD,1573979:150681142,-28694.44, Legal Aid Higher Crime ,
MOJ,LAA,24/10/18,Civil Representation,LEGAL AID FUND,WATSONS SOLICITORS WARRINGTON LLP,1571996:3000000690190018,30234.91, Legal Aid Civil Representation ,
MOJ,LAA,24/10/18,Higher Crime,LEGAL AID FUND,WEST MIDLANDS SOLICITORS,1574299:150689211,35815.83, Legal Aid Higher Crime ,
MOJ,LAA,24/10/18,Civil Representation,LEGAL AID FUND,WILKINSON WOODWARD.,1573138:3000002136350001,38677.86, Legal Aid Civil Representation ,
MOJ,LAA,24/10/18,Civil Representation,LEGAL AID FUND,WILKINSON WOODWARD.,1573138:3000003346730005,28217.21, Legal Aid Civil Representation ,
MOJ,LAA,24/10/18,Civil Representation,LEGAL AID FUND,WILLSONS SOLICITORS,1574017:3000000962990058,42912.81, Legal Aid Civil Representation ,
MOJ,LAA,25/10/18,EXP - PURCHASE OF GOODS/SERVICES - OTHER PROFESSIONAL SERVICES - Legal Services - Government Legal Department,Legal,GOVERNMENT LEGAL DEPARTMENT,A2716,157500, Legal Costs ,
MOJ,LAA,25/10/18,EXP - PURCHASE OF GOODS/SERVICES - OTHER - Professional Fees,Counter Fraud & Intelligence,THURROCK COUNCIL,9095803,59386.75, Investigation Services ,
MOJ,LAA,25/10/18,Civil Representation,LEGAL AID FUND,TUSTAIN JONES & CO,1575067:150200080,-26832, Legal Aid Civil Representation ,
MOJ,LAA,29/10/18,EXP - PURCHASE OF GOODS/SERVICES - TRAINING & DEVELOPMENT,Executive Team,CAPP & CO LTD,211747,22190.57, Training & Development Costs ,
MOJ,LAA,29/10/18,Civil Representation,LEGAL AID FUND,CYRUS R LARIZADEH,1575088:3000001133550006RC,-51243.3, Legal Aid Civil Representation ,
MOJ,LAA,29/10/18,Civil Representation,LEGAL AID FUND,HARINDER KAUR,1575084:3000001158110018RC,-46149.46, Legal Aid Civil Representation ,
MOJ,LAA,31/10/18,Legal Help,LEGAL AID FUND,ABBOTSTONE LAW LLP,1577536:150752634,66145, Legal Aid Legal Help ,
MOJ,LAA,31/10/18,Lower Crime,LEGAL AID FUND,ABV SOLICITORS,1577825:150752763,50000, Legal Aid Lower Crime ,
MOJ,LAA,31/10/18,Higher Crime,LEGAL AID FUND,ADAM G MORGAN,1575457:150726622,39778.92, Legal Aid Higher Crime ,
MOJ,LAA,31/10/18,Higher Crime,LEGAL AID FUND,ALAN P KENT QC,1578127:150735388,26227.64, Legal Aid Higher Crime ,
MOJ,LAA,31/10/18,Lower Crime,LEGAL AID FUND,ALBIN & CO LTD,1579360:150753955,27338, Legal Aid Lower Crime ,
MOJ,LAA,31/10/18,Lower Crime,LEGAL AID FUND,ALEXANDER BENNETT,1579993:150754175,44058, Legal Aid Lower Crime ,
MOJ,LAA,31/10/18,Lower Crime,LEGAL AID FUND,ALLEN HOOLE LTD,1579963:150740788,42651.05, Legal Aid Lower Crime ,
MOJ,LAA,31/10/18,Lower Crime,LEGAL AID FUND,ALLEN HOOLE LTD,1578691:150740786,37700, Legal Aid Lower Crime ,
MOJ,LAA,31/10/18,Higher Crime,LEGAL AID FUND,AMPHLETT LISSIMORE BAGSHAWS LLP,1579920:150776923,34193.11, Legal Aid Higher Crime ,
MOJ,LAA,31/10/18,Civil Representation,LEGAL AID FUND,ANDREW K BAGCHI QC,1578186:3000002308800008,52728.24, Legal Aid Civil Representation ,
MOJ,LAA,31/10/18,Higher Crime,LEGAL AID FUND,ANTHONY M RIMMER,1575385:150727406,26448.48, Legal Aid Higher Crime ,
MOJ,LAA,31/10/18,Legal Help,LEGAL AID FUND,APPLEMAN LEGAL,1578015:150782747,47318, Legal Aid Legal Help ,
MOJ,LAA,31/10/18,Higher Crime,LEGAL AID FUND,ARCADIAN LAW,1578914:150736345,29664.55, Legal Aid Higher Crime ,
MOJ,LAA,31/10/18,Higher Crime,LEGAL AID FUND,ARORA LODHI HEATH,1576200:150727814,34130.47, Legal Aid Higher Crime ,
MOJ,LAA,31/10/18,Higher Crime,LEGAL AID FUND,ASGHAR & CO,1580444:150743695,107302.69, Legal Aid Higher Crime ,
MOJ,LAA,31/10/18,Higher Crime,LEGAL AID FUND,ASGHAR & CO,1580444:150743677,-68999.82, Legal Aid Higher Crime ,
MOJ,LAA,31/10/18,Higher Crime,LEGAL AID FUND,ASH CLIFFORD,1580410:150727795,42799.66, Legal Aid Higher Crime ,
MOJ,LAA,31/10/18,Higher Crime,LEGAL AID FUND,AUSTIN WELCH,1577680:150744670,26160, Legal Aid Higher Crime ,
MOJ,LAA,31/10/18,Lower Crime,LEGAL AID FUND,BAILEY NICHOLSON GRAYSON,1575515:150752740,94900, Legal Aid Lower Crime ,
MOJ,LAA,31/10/18,Lower Crime,LEGAL AID FUND,BAINS SOLICITORS,1575514:150753126,29318, Legal Aid Lower Crime ,
MOJ,LAA,31/10/18,Higher Crime,LEGAL AID FUND,BARKER AND COPEMAN,1576676:150726637,32680.72, Legal Aid Higher Crime ,
MOJ,LAA,31/10/18,Legal Help,LEGAL AID FUND,BARNES HARRILD & DYER,1575774:150752479,32176, Legal Aid Legal Help ,
MOJ,LAA,31/10/18,Civil Representation,LEGAL AID FUND,BATES & MOUNTAIN,1579261:3000003446560021,33526.98, Legal Aid Civil Representation ,
MOJ,LAA,31/10/18,Lower Crime,LEGAL AID FUND,BELMORES SOLICITORS LTD,1577781:150753166,31570, Legal Aid Lower Crime ,
MOJ,LAA,31/10/18,Higher Crime,LEGAL AID FUND,BERNARD G TETLOW QC,1575452:150743844,67870.07, Legal Aid Higher Crime ,
MOJ,LAA,31/10/18,Lower Crime,LEGAL AID FUND,BESWICKS SOLICITORS LLP,1576208:150753621,40502, Legal Aid Lower Crime ,
MOJ,LAA,31/10/18,Higher Crime,LEGAL AID FUND,BHANDAL LAW,1579997:150736001,105857.93, Legal Aid Higher Crime ,
MOJ,LAA,31/10/18,Lower Crime,LEGAL AID FUND,BHATIA BEST LTD,1578851:150752689,58800, Legal Aid Lower Crime ,
MOJ,LAA,31/10/18,Lower Crime,LEGAL AID FUND,BHATIA BEST LTD,1578849:150752692,28300, Legal Aid Lower Crime ,
MOJ,LAA,31/10/18,Lower Crime,LEGAL AID FUND,BINDMANS LLP,1580376:150753274,58886, Legal Aid Lower Crime ,
MOJ,LAA,31/10/18,Lower Crime,LEGAL AID FUND,BIRDS SOLICITORS LTD,1577237:150752753,72000, Legal Aid Lower Crime ,
MOJ,LAA,31/10/18,Higher Crime,LEGAL AID FUND,BIRDS SOLICITORS LTD,1577237:150758963,49729.07, Legal Aid Higher Crime ,
MOJ,LAA,31/10/18,Legal Help,LEGAL AID FUND,BIRNBERG PEIRCE LTD,1575504:150751702,51800, Legal Aid Legal Help ,
MOJ,LAA,31/10/18,Lower Crime,LEGAL AID FUND,BISHOP & LIGHT SOLICITORS LTD,1580440:150752927,27400, Legal Aid Lower Crime ,
MOJ,LAA,31/10/18,Legal Help,LEGAL AID FUND,BISON SOLICITORS LTD,1577543:150741643,99000, Legal Aid Legal Help ,
MOJ,LAA,31/10/18,Legal Help,LEGAL AID FUND,BISON SOLICITORS LTD,1577543:150741647,76629, Legal Aid Legal Help ,
MOJ,LAA,31/10/18,Lower Crime,LEGAL AID FUND,BJ & CO SOLICITORS LTD T/A  BRIAN JACKSON & CO,1576700:150752808,32100, Legal Aid Lower Crime ,
MOJ,LAA,31/10/18,Lower Crime,LEGAL AID FUND,BLACKFORDS LLP,1579835:150753221,35178, Legal Aid Lower Crime ,
MOJ,LAA,31/10/18,Lower Crime,LEGAL AID FUND,BLACKWELLS,1577269:150752856,35000, Legal Aid Lower Crime ,
MOJ,LAA,31/10/18,Lower Crime,LEGAL AID FUND,BOBBETTS MACKAN,1575650:150752954,42000, Legal Aid Lower Crime ,
MOJ,LAA,31/10/18,Lower Crime,LEGAL AID FUND,BOND JOSEPH,1576127:150753509,33965, Legal Aid Lower Crime ,
MOJ,LAA,31/10/18,Lower Crime,LEGAL AID FUND,BREYDONS SOLICITORS LTD,1577993:150753729,31365, Legal Aid Lower Crime ,
MOJ,LAA,31/10/18,Legal Help,LEGAL AID FUND,BRIGHTON HOUSING TRUST,1580229:150752379,31752, Legal Aid Legal Help ,
MOJ,LAA,31/10/18,Legal Help,LEGAL AID FUND,BURKE NIAZI  LTD,1576713:150741560,99000, Legal Aid Legal Help ,
MOJ,LAA,31/10/18,Lower Crime,LEGAL AID FUND,BURTON COPELAND LLP,1579744:150753487,44649, Legal Aid Lower Crime ,
MOJ,LAA,31/10/18,Higher Crime,LEGAL AID FUND,BURTON COPELAND LLP,1579744:150735432,26464.45, Legal Aid Higher Crime ,
MOJ,LAA,31/10/18,Legal Help,LEGAL AID FUND,BUTLER & CO,1577786:150751643,36500, Legal Aid Legal Help ,
MOJ,LAA,31/10/18,Civil Representation,LEGAL AID FUND,CAMERON JONES HUSSELL & HOWE,1576723:3000002860080008,30199.98, Legal Aid Civil Representation ,
MOJ,LAA,31/10/18,Civil Representation,LEGAL AID FUND,CAROL J TRIMMER,1575376:3000000768470008,30834, Legal Aid Civil Representation ,
MOJ,LAA,31/10/18,Lower Crime,LEGAL AID FUND,CARR & CO,1577837:150752854,32800, Legal Aid Lower Crime ,
MOJ,LAA,31/10/18,Lower Crime,LEGAL AID FUND,CARRINGTONS SOLICITORS,1578264:150753130,193005, Legal Aid Lower Crime ,
MOJ,LAA,31/10/18,Higher Crime,LEGAL AID FUND,CARSON KAYE SOLICITORS,1578407:150777178,107970.13, Legal Aid Higher Crime ,
MOJ,LAA,31/10/18,Lower Crime,LEGAL AID FUND,CARTER OSBORNE LTD,1579276:150753127,52881, Legal Aid Lower Crime ,
MOJ,LAA,31/10/18,Legal Help,LEGAL AID FUND,CARTWRIGHT KING LTD,1576646:150752233,70959, Legal Aid Legal Help ,
MOJ,LAA,31/10/18,Lower Crime,LEGAL AID FUND,CARTWRIGHT KING LTD,1576646:150773031,26520, Legal Aid Lower Crime ,
MOJ,LAA,31/10/18,Civil Representation,LEGAL AID FUND,CATRIONA A M DUTHIE,1577059:3000002524420005,25358.4, Legal Aid Civil Representation ,
MOJ,LAA,31/10/18,Lower Crime,LEGAL AID FUND,CHIVERS SOLICITORS,1575497:150753393,34997, Legal Aid Lower Crime ,
MOJ,LAA,31/10/18,Higher Crime,LEGAL AID FUND,CHRISTOPHER J HARDING,1575936:150741967,72199.99, Legal Aid Higher Crime ,
MOJ,LAA,31/10/18,Lower Crime,LEGAL AID FUND,CHURCHERS SOLICITORS,1578759:150753527,29230, Legal Aid Lower Crime ,
MOJ,LAA,31/10/18,Legal Help,LEGAL AID FUND,CJCH SOLICITORS,1577985:150752641,28321, Legal Aid Legal Help ,
MOJ,LAA,31/10/18,Lower Crime,LEGAL AID FUND,CJH SOLICITORS,1575501:150752711,28500, Legal Aid Lower Crime ,
MOJ,LAA,31/10/18,Legal Help,LEGAL AID FUND,CMHT SOLICITORS LLP,1576216:150751830,52684, Legal Aid Legal Help ,
MOJ,LAA,31/10/18,Lower Crime,LEGAL AID FUND,COBLEYS SOLICITORS LTD,1576093:150753320,25891, Legal Aid Lower Crime ,
MOJ,LAA,31/10/18,Legal Help,LEGAL AID FUND,CONFREYS,1575615:150751952,38023, Legal Aid Legal Help ,
MOJ,LAA,31/10/18,Lower Crime,LEGAL AID FUND,CONNOR ROSS-BROWN SOLICITORS,1579514:150753021,35000, Legal Aid Lower Crime ,
MOJ,LAA,31/10/18,Legal Help,LEGAL AID FUND,COVENTRY LAW CENTRE LTD,1576059:150751843,31921, Legal Aid Legal Help ,
MOJ,LAA,31/10/18,Lower Crime,LEGAL AID FUND,CRIMINAL DEFENCE ASSOCIATES LTD,1578261:150752717,25000, Legal Aid Lower Crime ,
MOJ,LAA,31/10/18,Lower Crime,LEGAL AID FUND,CRIMINAL DEFENCE SOLICITORS,1577774:150752786,39600, Legal Aid Lower Crime ,
MOJ,LAA,31/10/18,Lower Crime,LEGAL AID FUND,CROWE HUMBLE WESENCRAFT,1576074:150752826,50700, Legal Aid Lower Crime ,
MOJ,LAA,31/10/18,Lower Crime,LEGAL AID FUND,DALTON HOLMES GRAY,1580319:150753281,31848, Legal Aid Lower Crime ,
MOJ,LAA,31/10/18,Legal Help,LEGAL AID FUND,DAVID GRAY LLP,1577273:150752201,27784, Legal Aid Legal Help ,
MOJ,LAA,31/10/18,Higher Crime,LEGAL AID FUND,DAVID R MCLACHLAN,1580114:150727521,26318.17, Legal Aid Higher Crime ,
MOJ,LAA,31/10/18,Lower Crime,LEGAL AID FUND,DAVID SEDGWICK SOLICITORS LTD,1578212:150753042,29118, Legal Aid Lower Crime ,
MOJ,LAA,31/10/18,Higher Crime,LEGAL AID FUND,DAVID W HARRIS & CO,1575624:150736377,33303.41, Legal Aid Higher Crime ,
MOJ,LAA,31/10/18,Lower Crime,LEGAL AID FUND,DEFENCE LAW LTD,1579721:150753778,31463, Legal Aid Lower Crime ,
MOJ,LAA,31/10/18,Higher Crime,LEGAL AID FUND,DJMS SOLICITORS LTD,1578009:150777648,98699.72, Legal Aid Higher Crime ,
MOJ,LAA,31/10/18,Lower Crime,LEGAL AID FUND,DJMS SOLICITORS LTD,1579190:150753339,30613, Legal Aid Lower Crime ,
MOJ,LAA,31/10/18,Lower Crime,LEGAL AID FUND,DOBSONS,1579347:150752756,35000, Legal Aid Lower Crime ,
MOJ,LAA,31/10/18,Legal Help,LEGAL AID FUND,DONOVAN NEWTON SOLICITORS,1580492:150752215,47468, Legal Aid Legal Help ,
MOJ,LAA,31/10/18,Higher Crime,LEGAL AID FUND,DRUMMOND SOLICITORS LTD,1578399:150744178,111613.59, Legal Aid Higher Crime ,
MOJ,LAA,31/10/18,Lower Crime,LEGAL AID FUND,DUNCAN LEWIS SOLICITORS  LTD,1575569:150752772,102700, Legal Aid Lower Crime ,
MOJ,LAA,31/10/18,Legal Help,LEGAL AID FUND,DUNCAN LEWIS SOLICITORS  LTD,1575569:150741549,99000, Legal Aid Legal Help ,
MOJ,LAA,31/10/18,Legal Help,LEGAL AID FUND,DUNCAN LEWIS SOLICITORS  LTD,1575570:150741534,99000, Legal Aid Legal Help ,
MOJ,LAA,31/10/18,Legal Help,LEGAL AID FUND,DUNCAN LEWIS SOLICITORS  LTD,1575569:150741551,98000, Legal Aid Legal Help ,
MOJ,LAA,31/10/18,Legal Help,LEGAL AID FUND,DUNCAN LEWIS SOLICITORS  LTD,1575570:150741535,98000, Legal Aid Legal Help ,
MOJ,LAA,31/10/18,Legal Help,LEGAL AID FUND,DUNCAN LEWIS SOLICITORS  LTD,1575570:150741538,97000, Legal Aid Legal Help ,
MOJ,LAA,31/10/18,Legal Help,LEGAL AID FUND,DUNCAN LEWIS SOLICITORS  LTD,1575570:150741540,96000, Legal Aid Legal Help ,
MOJ,LAA,31/10/18,Legal Help,LEGAL AID FUND,DUNCAN LEWIS SOLICITORS  LTD,1575569:150741553,71400, Legal Aid Legal Help ,
MOJ,LAA,31/10/18,Legal Help,LEGAL AID FUND,DUNCAN LEWIS SOLICITORS  LTD,1576969:150751793,59300, Legal Aid Legal Help ,
MOJ,LAA,31/10/18,Lower Crime,LEGAL AID FUND,DUNCAN LEWIS SOLICITORS  LTD,1575570:150753251,51806, Legal Aid Lower Crime ,
MOJ,LAA,31/10/18,Lower Crime,LEGAL AID FUND,DUNCAN LEWIS SOLICITORS  LTD,1580259:150754191,48650, Legal Aid Lower Crime ,
MOJ,LAA,31/10/18,Civil Representation,LEGAL AID FUND,DUNCAN LEWIS SOLICITORS  LTD,1575570:3000000568150027,27829.62, Legal Aid Civil Representation ,
MOJ,LAA,31/10/18,Lower Crime,LEGAL AID FUND,EBR ATTRIDGE LLP,1577737:150753215,41965, Legal Aid Lower Crime ,
MOJ,LAA,31/10/18,Lower Crime,LEGAL AID FUND,EBR ATTRIDGE LLP,1577738:150753214,32999, Legal Aid Lower Crime ,
MOJ,LAA,31/10/18,Higher Crime,LEGAL AID FUND,EBR ATTRIDGE LLP,1577737:150726876,30721.25, Legal Aid Higher Crime ,
MOJ,LAA,31/10/18,Lower Crime,LEGAL AID FUND,EDWARD FAIL BRADSHAW & WATERSON,1579345:150753294,42856, Legal Aid Lower Crime ,
MOJ,LAA,31/10/18,Legal Help,LEGAL AID FUND,EDWARDS DUTHIE,1580448:150752065,30635, Legal Aid Legal Help ,
MOJ,LAA,31/10/18,Civil Representation,LEGAL AID FUND,EDWARDS DUTHIE,1580448:3000002878760007,27587.84, Legal Aid Civil Representation ,
MOJ,LAA,31/10/18,Legal Help,LEGAL AID FUND,ELDER RAHIMI LIMITED,1579748:150752128,44511, Legal Aid Legal Help ,
MOJ,LAA,31/10/18,Higher Crime,LEGAL AID FUND,ELLIOTT STERN SOLICITORS,1575507:150777174,88029.33, Legal Aid Higher Crime ,
MOJ,LAA,31/10/18,Higher Crime,LEGAL AID FUND,EMILY L LAUCHLAN,1577935:150743682,33651.6, Legal Aid Higher Crime ,
MOJ,LAA,31/10/18,Lower Crime,LEGAL AID FUND,ERIC ROBINSON SOLICITORS,1575664:150752932,29900, Legal Aid Lower Crime ,
MOJ,LAA,31/10/18,Lower Crime,LEGAL AID FUND,EVANS HAYES BURNELL SOLICITORS LTD,1575722:150753936,29205, Legal Aid Lower Crime ,
MOJ,LAA,31/10/18,Higher Crime,LEGAL AID FUND,EWING LAW LTD,1578405:150776306,29664.55, Legal Aid Higher Crime ,
MOJ,LAA,31/10/18,Legal Help,LEGAL AID FUND,FADIGA & CO LTD,1577316:150752072,27049, Legal Aid Legal Help ,
MOJ,LAA,31/10/18,Lower Crime,LEGAL AID FUND,FARLEYS SOLICITORS LLP,1577302:150752876,25700, Legal Aid Lower Crime ,
MOJ,LAA,31/10/18,Higher Crime,LEGAL AID FUND,FIONA H ROBERTSON,1578125:150744577,34482.82, Legal Aid Higher Crime ,
MOJ,LAA,31/10/18,Higher Crime,LEGAL AID FUND,FOOTNER & EWING LLP,1580460:150759213,83225.74, Legal Aid Higher Crime ,
MOJ,LAA,31/10/18,Lower Crime,LEGAL AID FUND,FORBES SOLICITORS,1580299:150752884,37000, Legal Aid Lower Crime ,
MOJ,LAA,31/10/18,Higher Crime,LEGAL AID FUND,FOSSE LAW,1578760:150736476,38460.81, Legal Aid Higher Crime ,
MOJ,LAA,31/10/18,Legal Help,LEGAL AID FUND,FOUNTAIN SOLICITORS LTD,1578216:150751620,77300, Legal Aid Legal Help ,
MOJ,LAA,31/10/18,Higher Crime,LEGAL AID FUND,FOUNTAIN SOLICITORS LTD,1578216:150758637,34033.59, Legal Aid Higher Crime ,
MOJ,LAA,31/10/18,Lower Crime,LEGAL AID FUND,FREEMANS SOLICITORS,1580484:150752781,25000, Legal Aid Lower Crime ,
MOJ,LAA,31/10/18,Lower Crime,LEGAL AID FUND,G T STEWART LTD,1579179:150753719,47635, Legal Aid Lower Crime ,
MOJ,LAA,31/10/18,Lower Crime,LEGAL AID FUND,G T STEWART LTD,1577757:150753287,34312, Legal Aid Lower Crime ,
MOJ,LAA,31/10/18,Lower Crime,LEGAL AID FUND,GAMMON PIERCY & GAIGER,1579845:150753523,73449, Legal Aid Lower Crime ,
MOJ,LAA,31/10/18,Lower Crime,LEGAL AID FUND,GARTSIDES,1575612:150753059,26743, Legal Aid Lower Crime ,
MOJ,LAA,31/10/18,Lower Crime,LEGAL AID FUND,GEOFF WHITE & CO,1578755:150753511,32487, Legal Aid Lower Crime ,
MOJ,LAA,31/10/18,Higher Crime,LEGAL AID FUND,GEOFFREY FORRESTER & CO,1577914:150776753,107574.07, Legal Aid Higher Crime ,
MOJ,LAA,31/10/18,Lower Crime,LEGAL AID FUND,GEOFFREY FORRESTER & CO,1577914:150752821,28100, Legal Aid Lower Crime ,
MOJ,LAA,31/10/18,Lower Crime,LEGAL AID FUND,GEPP & SONS SOLICITORS,1579289:150752730,25800, Legal Aid Lower Crime ,
MOJ,LAA,31/10/18,Lower Crime,LEGAL AID FUND,GHP LEGAL,1575517:150752686,35300, Legal Aid Lower Crime ,
MOJ,LAA,31/10/18,Higher Crime,LEGAL AID FUND,GILLEN DE ALWIS SOLICITORS LTD,1578952:150736034,68560.95, Legal Aid Higher Crime ,
MOJ,LAA,31/10/18,Legal Help,LEGAL AID FUND,GLEDHILL GILL SOLICITORS,1580433:150751863,28739, Legal Aid Legal Help ,
MOJ,LAA,31/10/18,Higher Crime,LEGAL AID FUND,GLP SOLICITORS,1579747:150736132,39173.42, Legal Aid Higher Crime ,
MOJ,LAA,31/10/18,Lower Crime,LEGAL AID FUND,GOMER WILLIAMS,1575614:150753070,30779, Legal Aid Lower Crime ,
MOJ,LAA,31/10/18,Lower Crime,LEGAL AID FUND,GOODALL BARNETT JAMES SOLICITORS,1576718:150752918,27100, Legal Aid Lower Crime ,
MOJ,LAA,31/10/18,Civil Representation,LEGAL AID FUND,GRAHAM & ROSEN LTD,1577833:3000001090830018,40669.66, Legal Aid Civil Representation ,
MOJ,LAA,31/10/18,Lower Crime,LEGAL AID FUND,GRAHAME STOWE BATESON,1577994:150753406,26070, Legal Aid Lower Crime ,
MOJ,LAA,31/10/18,Lower Crime,LEGAL AID FUND,GRECH GOODEN SOLICITORS LTD,1578725:150753087,31345, Legal Aid Lower Crime ,
MOJ,LAA,31/10/18,Legal Help,LEGAL AID FUND,GUILE NICHOLAS-INC DONALD GALBRAITH & CO,1578218:150751697,80000, Legal Aid Legal Help ,
MOJ,LAA,31/10/18,Legal Help,LEGAL AID FUND,GUILE NICHOLAS-INC DONALD GALBRAITH & CO,1577465:150752622,38367, Legal Aid Legal Help ,
MOJ,LAA,31/10/18,Lower Crime,LEGAL AID FUND,GURNEY HARDEN SOLICITORS,1578671:150753502,33808, Legal Aid Lower Crime ,
MOJ,LAA,31/10/18,Lower Crime,LEGAL AID FUND,GWB HARTHILLS LLP,1577255:150753379,37129, Legal Aid Lower Crime ,
MOJ,LAA,31/10/18,Lower Crime,LEGAL AID FUND,H P GOWER SOLICITORS,1579144:150753757,48053, Legal Aid Lower Crime ,
MOJ,LAA,31/10/18,Legal Help,LEGAL AID FUND,HALLIDAY REEVES LAW FIRM,1580273:150752371,32827, Legal Aid Legal Help ,
MOJ,LAA,31/10/18,Higher Crime,LEGAL AID FUND,HALLINAN BLACKBURN GITTINGS & NOTT LLP,1579831:150735566,89975.11, Legal Aid Higher Crime ,
MOJ,LAA,31/10/18,Higher Crime,LEGAL AID FUND,HALLINAN BLACKBURN GITTINGS & NOTT LLP,1579831:150735718,49729.07, Legal Aid Higher Crime ,
MOJ,LAA,31/10/18,Higher Crime,LEGAL AID FUND,HANIF & CO,1580365:150736418,105857.75, Legal Aid Higher Crime ,
MOJ,LAA,31/10/18,Civil Representation,LEGAL AID FUND,HANNAH M MARKHAM QC,1578585:3000001681400030,54140.4, Legal Aid Civil Representation ,
MOJ,LAA,31/10/18,Higher Crime,LEGAL AID FUND,HANNE & CO,1579336:150758548,60205.8, Legal Aid Higher Crime ,
MOJ,LAA,31/10/18,Lower Crime,LEGAL AID FUND,HANNE & CO,1579336:150753261,26004, Legal Aid Lower Crime ,
MOJ,LAA,31/10/18,Lower Crime,LEGAL AID FUND,HARRIS CUFFARO & NICHOLS,1577358:150752724,44500, Legal Aid Lower Crime ,
MOJ,LAA,31/10/18,Lower Crime,LEGAL AID FUND,HASKELL & CO,1578208:150753501,29284, Legal Aid Lower Crime ,
MOJ,LAA,31/10/18,Lower Crime,LEGAL AID FUND,HDH LAW,1579728:150753011,25000, Legal Aid Lower Crime ,
MOJ,LAA,31/10/18,Civil Representation,LEGAL AID FUND,HEALD NICKINSON,1580439:150770832,35557.34, Legal Aid Civil Representation ,
MOJ,LAA,31/10/18,Civil Representation,LEGAL AID FUND,HELEN DAVEY,1576011:3000002325680041,28662.12, Legal Aid Civil Representation ,
MOJ,LAA,31/10/18,Lower Crime,LEGAL AID FUND,HENNESSY & HAMMUDI,1578279:150752943,60000, Legal Aid Lower Crime ,
MOJ,LAA,31/10/18,Lower Crime,LEGAL AID FUND,HENRY HYAMS LTD,1578302:150753403,41110, Legal Aid Lower Crime ,
MOJ,LAA,31/10/18,Lower Crime,LEGAL AID FUND,HENRY'S SOLICITORS LTD,1576656:150753493,32285, Legal Aid Lower Crime ,
MOJ,LAA,31/10/18,Lower Crime,LEGAL AID FUND,HILL TWINE,1576916:150753833,35317, Legal Aid Lower Crime ,
MOJ,LAA,31/10/18,Lower Crime,LEGAL AID FUND,HINE SOLICITORS,1579690:150753722,48933, Legal Aid Lower Crime ,
MOJ,LAA,31/10/18,Lower Crime,LEGAL AID FUND,HINE SOLICITORS,1579958:150754009,28886, Legal Aid Lower Crime ,
MOJ,LAA,31/10/18,Lower Crime,LEGAL AID FUND,HODGE JONES & ALLEN LLP,1575658:150753271,52147, Legal Aid Lower Crime ,
MOJ,LAA,31/10/18,Higher Crime,LEGAL AID FUND,HOGAN BROWN SOLICITORS,1577258:150727195,42917.45, Legal Aid Higher Crime ,
MOJ,LAA,31/10/18,Higher Crime,LEGAL AID FUND,HOPLEYS GMA-INC KEENE & KELLY,1575520:150776565,74635.95, Legal Aid Higher Crime ,
MOJ,LAA,31/10/18,Lower Crime,LEGAL AID FUND,HORSMAN SOLICITORS LTD,1577889:150753505,34485, Legal Aid Lower Crime ,
MOJ,LAA,31/10/18,Lower Crime,LEGAL AID FUND,HOWARD & BYRNE SOLICITORS,1577234:150752853,46000, Legal Aid Lower Crime ,
MOJ,LAA,31/10/18,Higher Crime,LEGAL AID FUND,HOWARDS SOLICITORS LTD,1576666:150759641,63651.54, Legal Aid Higher Crime ,
MOJ,LAA,31/10/18,Legal Help,LEGAL AID FUND,HOWE & CO,1577256:150752125,55896, Legal Aid Legal Help ,
MOJ,LAA,31/10/18,Legal Help,LEGAL AID FUND,HOWELLS LLP,1578376:150751665,50000, Legal Aid Legal Help ,
MOJ,LAA,31/10/18,Lower Crime,LEGAL AID FUND,HOWELLS LLP,1578376:150752842,44900, Legal Aid Lower Crime ,
MOJ,LAA,31/10/18,Civil Representation,LEGAL AID FUND,HOWELLS LLP,1579719:3000002246230024,38685.49, Legal Aid Civil Representation ,
MOJ,LAA,31/10/18,Lower Crime,LEGAL AID FUND,HPJV SOLICITORS,1576186:150753060,28547, Legal Aid Lower Crime ,
MOJ,LAA,31/10/18,Legal Help,LEGAL AID FUND,HUNT & COOMBS LLP,1579297:150751938,30692, Legal Aid Legal Help ,
MOJ,LAA,31/10/18,Lower Crime,LEGAL AID FUND,I B B SOLICITORS,1577191:150752760,50700, Legal Aid Lower Crime ,
MOJ,LAA,31/10/18,Higher Crime,LEGAL AID FUND,I B B SOLICITORS,1577191:150726995,47124.73, Legal Aid Higher Crime ,
MOJ,LAA,31/10/18,Higher Crime,LEGAL AID FUND,IMRAN SHAFI,1575820:150735465,37993.92, Legal Aid Higher Crime ,
MOJ,LAA,31/10/18,Lower Crime,LEGAL AID FUND,INSTALAW,1578403:150753886,97404, Legal Aid Lower Crime ,
MOJ,LAA,31/10/18,Lower Crime,LEGAL AID FUND,IRVINE THANVI NATAS SOLICITORS,1576663:150752746,43500, Legal Aid Lower Crime ,
MOJ,LAA,31/10/18,Legal Help,LEGAL AID FUND,ISON HARRISON LTD,1576620:150752038,35663, Legal Aid Legal Help ,
MOJ,LAA,31/10/18,Lower Crime,LEGAL AID FUND,J D SOLICITORS,1575193:150754054,54915, Legal Aid Lower Crime ,
MOJ,LAA,31/10/18,Higher Crime,LEGAL AID FUND,J D SOLICITORS,1575193:150727588,35746.72, Legal Aid Higher Crime ,
MOJ,LAA,31/10/18,Lower Crime,LEGAL AID FUND,J D SPICER ZEB,1575660:150753233,68254, Legal Aid Lower Crime ,
MOJ,LAA,31/10/18,Legal Help,LEGAL AID FUND,J D SPICER ZEB,1575659:150752086,31777, Legal Aid Legal Help ,
MOJ,LAA,31/10/18,Legal Help,LEGAL AID FUND,JACKSON LEES GROUP LTD,1578490:150741565,99000, Legal Aid Legal Help ,
MOJ,LAA,31/10/18,Lower Crime,LEGAL AID FUND,JACKSON LEES GROUP LTD,1578490:150753817,50709, Legal Aid Lower Crime ,
MOJ,LAA,31/10/18,Legal Help,LEGAL AID FUND,JACKSON LEES GROUP LTD,1576946:150752525,26165, Legal Aid Legal Help ,
MOJ,LAA,31/10/18,Legal Help,LEGAL AID FUND,JACKSON LEES GROUP LTD,1576731:150752052,26105, Legal Aid Legal Help ,
MOJ,LAA,31/10/18,Lower Crime,LEGAL AID FUND,JERMAN SAMUELS & PEARSON LLP,1575151:150753033,57000, Legal Aid Lower Crime ,
MOJ,LAA,31/10/18,Legal Help,LEGAL AID FUND,JOHN BLACK SOLICITORS LTD,1579986:150748716,25210, Legal Aid Legal Help ,
MOJ,LAA,31/10/18,Lower Crime,LEGAL AID FUND,JOHN DELANEY & CO SOLICITORS,1576621:150752862,33000, Legal Aid Lower Crime ,
MOJ,LAA,31/10/18,Legal Help,LEGAL AID FUND,JOHN FOWLERS LLP,1579819:150751656,48400, Legal Aid Legal Help ,
MOJ,LAA,31/10/18,Lower Crime,LEGAL AID FUND,JOHN FULLER & PARTNERS,1578731:150753150,25129, Legal Aid Lower Crime ,
MOJ,LAA,31/10/18,Civil Representation,LEGAL AID FUND,JOHN WHITTLE ROBINSON,1575560:3000002529170005,29838.6, Legal Aid Civil Representation ,
MOJ,LAA,31/10/18,Civil Representation,LEGAL AID FUND,JOHNATHAN F TAYLOR,1580285:3000004083580001,28814.4, Legal Aid Civil Representation ,
MOJ,LAA,31/10/18,Lower Crime,LEGAL AID FUND,JOSEPH HILL & CO,1578818:150753235,27957, Legal Aid Lower Crime ,
MOJ,LAA,31/10/18,Lower Crime,LEGAL AID FUND,JSP LAW LTD,1578479:150753851,35339, Legal Aid Lower Crime ,
MOJ,LAA,31/10/18,Lower Crime,LEGAL AID FUND,K LEGAL SOLICITORS,1579722:150753777,26110, Legal Aid Lower Crime ,
MOJ,LAA,31/10/18,Higher Crime,LEGAL AID FUND,KAMRANS SOLICITORS,1580313:150743811,50590.99, Legal Aid Higher Crime ,
MOJ,LAA,31/10/18,Civil Representation,LEGAL AID FUND,KARL J ROWLEY,1576575:3000003673140008,34421.16, Legal Aid Civil Representation ,
MOJ,LAA,31/10/18,Civil Representation,LEGAL AID FUND,KATY S RENSTEN,1578113:3000001674080021,31924.8, Legal Aid Civil Representation ,
MOJ,LAA,31/10/18,Higher Crime,LEGAL AID FUND,KEANEY WHITEHEAD PARTNERSHIP,1578717:150736003,56128.68, Legal Aid Higher Crime ,
MOJ,LAA,31/10/18,Lower Crime,LEGAL AID FUND,KEANEY WHITEHEAD PARTNERSHIP,1578717:150753323,25979, Legal Aid Lower Crime ,
MOJ,LAA,31/10/18,Higher Crime,LEGAL AID FUND,KENNETH M BARROW & CO,1577879:150776915,39298.98, Legal Aid Higher Crime ,
MOJ,LAA,31/10/18,Lower Crime,LEGAL AID FUND,KESAR & CO SOLICITORS,1579717:150753779,40192, Legal Aid Lower Crime ,
MOJ,LAA,31/10/18,Higher Crime,LEGAL AID FUND,KIERAN P VAUGHAN,1580059:150726696,30361.25, Legal Aid Higher Crime ,
MOJ,LAA,31/10/18,Lower Crime,LEGAL AID FUND,KYLES LEGAL PRACTICE,1579723:150753672,35666, Legal Aid Lower Crime ,
MOJ,LAA,31/10/18,Lower Crime,LEGAL AID FUND,LANSBURY WORTHINGTON LTD,1577354:150752737,54900, Legal Aid Lower Crime ,
MOJ,LAA,31/10/18,Legal Help,LEGAL AID FUND,LAWANA & CO,1578739:150751684,64000, Legal Aid Legal Help ,
MOJ,LAA,31/10/18,Lower Crime,LEGAL AID FUND,LAWRENCE & CO SOLICITORS CDS LLP,1578819:150752784,44400, Legal Aid Lower Crime ,
MOJ,LAA,31/10/18,Lower Crime,LEGAL AID FUND,LAWTONS SOLICITORS LTD,1579225:150753015,35500, Legal Aid Lower Crime ,
MOJ,LAA,31/10/18,Lower Crime,LEGAL AID FUND,LAWTONS SOLICITORS LTD,1575716:150753034,35000, Legal Aid Lower Crime ,
MOJ,LAA,31/10/18,Lower Crime,LEGAL AID FUND,LAWTONS SOLICITORS LTD,1575715:150753929,27487, Legal Aid Lower Crime ,
MOJ,LAA,31/10/18,Legal Help,LEGAL AID FUND,LEGAL JUSTICE SOLICITORS,1576940:150752530,37390, Legal Aid Legal Help ,
MOJ,LAA,31/10/18,Legal Help,LEGAL AID FUND,LEI DAT & BAIG SOLICITORS LTD,1580214:150752397,47950, Legal Aid Legal Help ,
MOJ,LAA,31/10/18,Lower Crime,LEGAL AID FUND,LESLIE FRANKS SOLICITORS,1578270:150753275,63970, Legal Aid Lower Crime ,
MOJ,LAA,31/10/18,Higher Crime,LEGAL AID FUND,LESLIE FRANKS SOLICITORS,1578270:150759379,37296.8, Legal Aid Higher Crime ,
MOJ,LAA,31/10/18,Lower Crime,LEGAL AID FUND,LEVY & CO SOLICITORS LLP,1578674:150752727,30700, Legal Aid Lower Crime ,
MOJ,LAA,31/10/18,Lower Crime,LEGAL AID FUND,LHD SOLICITORS LTD,1577758:150752872,37000, Legal Aid Lower Crime ,
MOJ,LAA,31/10/18,Higher Crime,LEGAL AID FUND,LINSKILLS,1575484:150744409,89975.11, Legal Aid Higher Crime ,
MOJ,LAA,31/10/18,Legal Help,LEGAL AID FUND,LISA MARIE MCNULTY SOLICITOR,1580309:150752147,27032, Legal Aid Legal Help ,
MOJ,LAA,31/10/18,Lower Crime,LEGAL AID FUND,LLM SOLICITORS (LONDON) LTD,1579222:150753770,35922, Legal Aid Lower Crime ,
MOJ,LAA,31/10/18,Higher Crime,LEGAL AID FUND,LLOYDS PR SOLICITORS,1576637:150777512,80382.08, Legal Aid Higher Crime ,
MOJ,LAA,31/10/18,Lower Crime,LEGAL AID FUND,LLOYDS PR SOLICITORS,1576637:150753147,39757, Legal Aid Lower Crime ,
MOJ,LAA,31/10/18,Lower Crime,LEGAL AID FUND,LLOYDS PR SOLICITORS,1578696:150753152,37946, Legal Aid Lower Crime ,
MOJ,LAA,31/10/18,Civil Representation,LEGAL AID FUND,LOCK & MARLBOROUGH,1578852:3000001674080024,41197.85, Legal Aid Civil Representation ,
MOJ,LAA,31/10/18,Lower Crime,LEGAL AID FUND,LUMB & MACGILL,1577274:150752855,35000, Legal Aid Lower Crime ,
MOJ,LAA,31/10/18,Legal Help,LEGAL AID FUND,LUQMANI THOMPSON & PARTNERS,1576088:150752061,25899, Legal Aid Legal Help ,
MOJ,LAA,31/10/18,Higher Crime,LEGAL AID FUND,LYNETTE MCCLEMENT,1579081:150727689,27131.28, Legal Aid Higher Crime ,
MOJ,LAA,31/10/18,Higher Crime,LEGAL AID FUND,M K LAW SOLICITORS LTD,1579033:150776310,77123.21, Legal Aid Higher Crime ,
MOJ,LAA,31/10/18,Lower Crime,LEGAL AID FUND,M K LAW SOLICITORS LTD,1579671:150753731,31371, Legal Aid Lower Crime ,
MOJ,LAA,31/10/18,Higher Crime,LEGAL AID FUND,MANDISA C M KNIGHTS,1578916:150726919,39140.52, Legal Aid Higher Crime ,
MOJ,LAA,31/10/18,Higher Crime,LEGAL AID FUND,MARK B RUFFELL,1576507:150735385,26942.4, Legal Aid Higher Crime ,
MOJ,LAA,31/10/18,Higher Crime,LEGAL AID FUND,MARK R HARRIES,1575324:150735590,50234.52, Legal Aid Higher Crime ,
MOJ,LAA,31/10/18,Lower Crime,LEGAL AID FUND,MARTIN MURRAY & ASSOCIATES,1579879:150753224,62950, Legal Aid Lower Crime ,
MOJ,LAA,31/10/18,Lower Crime,LEGAL AID FUND,MARTIN MURRAY & ASSOCIATES,1579878:150753536,32187, Legal Aid Lower Crime ,
MOJ,LAA,31/10/18,Lower Crime,LEGAL AID FUND,MARTYN HEWETT,1579890:150752921,33500, Legal Aid Lower Crime ,
MOJ,LAA,31/10/18,Higher Crime,LEGAL AID FUND,MAURICE ANDREWS SOLICITORS,1579253:150727247,89975.11, Legal Aid Higher Crime ,
MOJ,LAA,31/10/18,Lower Crime,LEGAL AID FUND,MCGRATH & CO SOLICITORS,1577226:150752983,25000, Legal Aid Lower Crime ,
MOJ,LAA,31/10/18,Lower Crime,LEGAL AID FUND,MCLARTYS SOLICITORS,1578245:150752769,25000, Legal Aid Lower Crime ,
MOJ,LAA,31/10/18,Lower Crime,LEGAL AID FUND,MCMILLAN WILLIAMS SOLICITORS LTD,1579947:150754019,46171, Legal Aid Lower Crime ,
MOJ,LAA,31/10/18,Lower Crime,LEGAL AID FUND,MCSORLEY LEWIS LAW LTD,1575621:150753080,33320, Legal Aid Lower Crime ,
MOJ,LAA,31/10/18,Legal Help,LEGAL AID FUND,MENTAL HEALTH LEGAL REPRESENTATION LTD,1577200:150752216,32721, Legal Aid Legal Help ,
MOJ,LAA,31/10/18,Lower Crime,LEGAL AID FUND,MESSRS WATERFORDS SOLICITORS,1576201:150753247,28467, Legal Aid Lower Crime ,
MOJ,LAA,31/10/18,Lower Crime,LEGAL AID FUND,METCALFE COPEMAN & PETTEFAR,1579282:150752734,38700, Legal Aid Lower Crime ,
MOJ,LAA,31/10/18,Higher Crime,LEGAL AID FUND,MICHAEL HENDERSON & CO LTD,1580346:150777616,26212.97, Legal Aid Higher Crime ,
MOJ,LAA,31/10/18,Higher Crime,LEGAL AID FUND,MICHAEL P GOOLD,1576961:150727562,35959.07, Legal Aid Higher Crime ,
MOJ,LAA,31/10/18,Lower Crime,LEGAL AID FUND,MICHAEL PURDON,1577872:150753352,36187, Legal Aid Lower Crime ,
MOJ,LAA,31/10/18,Legal Help,LEGAL AID FUND,MIGRANT LEGAL PROJECT,1579467:150752462,27788, Legal Aid Legal Help ,
MOJ,LAA,31/10/18,Legal Help,LEGAL AID FUND,MIGRANT LEGAL PROJECT,1576410:150752545,26103, Legal Aid Legal Help ,
MOJ,LAA,31/10/18,Lower Crime,LEGAL AID FUND,MPR SOLICITORS LLP,1579762:150752791,56900, Legal Aid Lower Crime ,
MOJ,LAA,31/10/18,Higher Crime,LEGAL AID FUND,MTC & CO SOLICITORS,1578250:150743512,72246.96, Legal Aid Higher Crime ,
MOJ,LAA,31/10/18,Legal Help,LEGAL AID FUND,MTG SOLICITORS,1576639:150751694,25000, Legal Aid Legal Help ,
MOJ,LAA,31/10/18,Higher Crime,LEGAL AID FUND,NEEDHAM POULIER LTD,1576086:150743583,53555.94, Legal Aid Higher Crime ,
MOJ,LAA,31/10/18,Lower Crime,LEGAL AID FUND,NEEDHAM POULIER LTD,1576086:150753299,30180, Legal Aid Lower Crime ,
MOJ,LAA,31/10/18,Lower Crime,LEGAL AID FUND,NELSON GUEST & PARTNERS,1579885:150753229,29833, Legal Aid Lower Crime ,
MOJ,LAA,31/10/18,Higher Crime,LEGAL AID FUND,NICHOLAS E SEFTON,1576469:150744280,26934.48, Legal Aid Higher Crime ,
MOJ,LAA,31/10/18,Higher Crime,LEGAL AID FUND,NICHOLAS J L ROBINSON,1575266:150743960,25714.8, Legal Aid Higher Crime ,
MOJ,LAA,31/10/18,Lower Crime,LEGAL AID FUND,NIGEL WELLER & CO,1579294:150749171,35941.78, Legal Aid Lower Crime ,
MOJ,LAA,31/10/18,Lower Crime,LEGAL AID FUND,NOBLE SOLICITORS,1579673:150753685,45966, Legal Aid Lower Crime ,
MOJ,LAA,31/10/18,Lower Crime,LEGAL AID FUND,NORTON PESKETT SOLICITORS,1579731:150753172,27916, Legal Aid Lower Crime ,
MOJ,LAA,31/10/18,Lower Crime,LEGAL AID FUND,OBW PERERA LTD,1577216:150752732,29000, Legal Aid Lower Crime ,
MOJ,LAA,31/10/18,Lower Crime,LEGAL AID FUND,OLD BAILEY SOLICITORS LTD,1579696:150753720,36660, Legal Aid Lower Crime ,
MOJ,LAA,31/10/18,Lower Crime,LEGAL AID FUND,ONE LEGAL SERVICES LTD,1579926:150754038,42367, Legal Aid Lower Crime ,
MOJ,LAA,31/10/18,Higher Crime,LEGAL AID FUND,ONE LEGAL SERVICES LTD,1579927:150735693,34033.59, Legal Aid Higher Crime ,
MOJ,LAA,31/10/18,Lower Crime,LEGAL AID FUND,ONE LEGAL SERVICES LTD,1579927:150754037,26930, Legal Aid Lower Crime ,
MOJ,LAA,31/10/18,Lower Crime,LEGAL AID FUND,O'NEILL WRIGHT & NASH,1579700:150753673,34843, Legal Aid Lower Crime ,
MOJ,LAA,31/10/18,Legal Help,LEGAL AID FUND,OSBORNES SOLICITORS LLP,1579833:150751688,25200, Legal Aid Legal Help ,
MOJ,LAA,31/10/18,Lower Crime,LEGAL AID FUND,OSLERS SOLICITORS,1578677:150753178,27138, Legal Aid Lower Crime ,
MOJ,LAA,31/10/18,Lower Crime,LEGAL AID FUND,OWEN NASH & CO,1575652:150752992,25000, Legal Aid Lower Crime ,
MOJ,LAA,31/10/18,Legal Help,LEGAL AID FUND,OXFORD LAW GROUP,1576647:150751782,27700, Legal Aid Legal Help ,
MOJ,LAA,31/10/18,Higher Crime,LEGAL AID FUND,PALMERS CRIMINAL DEFENCE SOLICITORS,1578267:150727436,63736.22, Legal Aid Higher Crime ,
MOJ,LAA,31/10/18,Legal Help,LEGAL AID FUND,PARAGON LAW LTD,1577199:150751766,50000, Legal Aid Legal Help ,
MOJ,LAA,31/10/18,Civil Representation,LEGAL AID FUND,PARAM KAUR BAINS,1579629:3000002927740019,27750.74, Legal Aid Civil Representation ,
MOJ,LAA,31/10/18,Lower Crime,LEGAL AID FUND,PARKER BIRD WHITELEY,1578292:150753396,26957, Legal Aid Lower Crime ,
MOJ,LAA,31/10/18,Lower Crime,LEGAL AID FUND,PENFOLD & MCPHERSON LTD,1576755:150753537,25135, Legal Aid Lower Crime ,
MOJ,LAA,31/10/18,Legal Help,LEGAL AID FUND,PETER EDWARDS LAW LTD,1576142:150751681,41200, Legal Aid Legal Help ,
MOJ,LAA,31/10/18,Lower Crime,LEGAL AID FUND,PETHERBRIDGE BASSRA SOLICITORS LTD,1576689:150753391,29133, Legal Aid Lower Crime ,
MOJ,LAA,31/10/18,Legal Help,LEGAL AID FUND,PICKUP & SCOTT SOLICITORS,1580473:150752254,34615, Legal Aid Legal Help ,
MOJ,LAA,31/10/18,Civil Representation,LEGAL AID FUND,PORTER DODSON,1580414:3000002185340008,30087.72, Legal Aid Civil Representation ,
MOJ,LAA,31/10/18,Higher Crime,LEGAL AID FUND,POTTER DERBY LTD,1576714:150736167,53453.9, Legal Aid Higher Crime ,
MOJ,LAA,31/10/18,Lower Crime,LEGAL AID FUND,POWELL SPENCER AND PARTNERS,1575661:150752747,36900, Legal Aid Lower Crime ,
MOJ,LAA,31/10/18,Lower Crime,LEGAL AID FUND,PURE LAW CRIMINAL DEFENCE,1575177:150753940,42565, Legal Aid Lower Crime ,
MOJ,LAA,31/10/18,Lower Crime,LEGAL AID FUND,REECE THOMAS WATSON LTD,1578392:150753889,30860, Legal Aid Lower Crime ,
MOJ,LAA,31/10/18,Higher Crime,LEGAL AID FUND,REEDS SOLICITORS LTD,1575119:150727958,89975.11, Legal Aid Higher Crime ,
MOJ,LAA,31/10/18,Lower Crime,LEGAL AID FUND,REEDS SOLICITORS LTD,1575119:150780454,73524, Legal Aid Lower Crime ,
MOJ,LAA,31/10/18,Lower Crime,LEGAL AID FUND,REEDS SOLICITORS LTD,1579781:150780366,67949, Legal Aid Lower Crime ,
MOJ,LAA,31/10/18,Lower Crime,LEGAL AID FUND,REEDS SOLICITORS LTD,1575115:150780540,56135, Legal Aid Lower Crime ,
MOJ,LAA,31/10/18,Lower Crime,LEGAL AID FUND,REEDS SOLICITORS LTD,1575116:150780373,45211, Legal Aid Lower Crime ,
MOJ,LAA,31/10/18,Lower Crime,LEGAL AID FUND,REEDS SOLICITORS LTD,1579397:150780446,29851, Legal Aid Lower Crime ,
MOJ,LAA,31/10/18,Lower Crime,LEGAL AID FUND,REEDS SOLICITORS LTD,1577471:150780458,29516, Legal Aid Lower Crime ,
MOJ,LAA,31/10/18,Lower Crime,LEGAL AID FUND,REEDS SOLICITORS LTD,1579706:150780534,29142, Legal Aid Lower Crime ,
MOJ,LAA,31/10/18,Lower Crime,LEGAL AID FUND,REEDS SOLICITORS LTD,1575116:150780536,-45211, Legal Aid Lower Crime ,
MOJ,LAA,31/10/18,Lower Crime,LEGAL AID FUND,REEVES  & CO SOLICITORS,1578716:150753503,32706, Legal Aid Lower Crime ,
MOJ,LAA,31/10/18,Lower Crime,LEGAL AID FUND,RENSHAW DERRICK & CO,1580430:150753549,39917, Legal Aid Lower Crime ,
MOJ,LAA,31/10/18,Lower Crime,LEGAL AID FUND,RICHARD HASWELL SOLICITORS LTD,1577353:150753350,33397, Legal Aid Lower Crime ,
MOJ,LAA,31/10/18,Higher Crime,LEGAL AID FUND,RICHARD MARTIN,1578195:150726531,26942.4, Legal Aid Higher Crime ,
MOJ,LAA,31/10/18,Higher Crime,LEGAL AID FUND,RILEY HAYES & CO,1580363:150736540,54368.27, Legal Aid Higher Crime ,
MOJ,LAA,31/10/18,Lower Crime,LEGAL AID FUND,RILEY HAYES & CO,1580363:150753001,33900, Legal Aid Lower Crime ,
MOJ,LAA,31/10/18,Lower Crime,LEGAL AID FUND,RMNJ SOLICITORS ***,1579771:150753311,59620, Legal Aid Lower Crime ,
MOJ,LAA,31/10/18,Legal Help,LEGAL AID FUND,RMNJ SOLICITORS ***,1579771:150752049,27315, Legal Aid Legal Help ,
MOJ,LAA,31/10/18,Higher Crime,LEGAL AID FUND,ROBERT LIZAR,1576786:150743625,89975.11, Legal Aid Higher Crime ,
MOJ,LAA,31/10/18,Lower Crime,LEGAL AID FUND,ROBERT LIZAR,1576786:150753489,54486, Legal Aid Lower Crime ,
MOJ,LAA,31/10/18,Lower Crime,LEGAL AID FUND,ROBERTSON'S SOLICITORS,1579317:150752851,29500, Legal Aid Lower Crime ,
MOJ,LAA,31/10/18,Lower Crime,LEGAL AID FUND,ROWE SPARKES SOLICITORS LTD,1577769:150752935,41600, Legal Aid Lower Crime ,
MOJ,LAA,31/10/18,Lower Crime,LEGAL AID FUND,S A LAW CHAMBERS SOLICITORS,1576133:150752741,32500, Legal Aid Lower Crime ,
MOJ,LAA,31/10/18,Higher Crime,LEGAL AID FUND,SAKHI LEGAL SERVICES LTD,1577820:150736677,27529.76, Legal Aid Higher Crime ,
MOJ,LAA,31/10/18,Higher Crime,LEGAL AID FUND,SAMUEL GREEN QC,1576462:150726788,40557.47, Legal Aid Higher Crime ,
MOJ,LAA,31/10/18,Higher Crime,LEGAL AID FUND,SANDIP PATEL QC,1578168:150726968,33060.48, Legal Aid Higher Crime ,
MOJ,LAA,31/10/18,Higher Crime,LEGAL AID FUND,SANJEEV M SHARMA,1575863:150744732,27115.56, Legal Aid Higher Crime ,
MOJ,LAA,31/10/18,Lower Crime,LEGAL AID FUND,SANSBURY DOUGLAS,1579198:150753008,55000, Legal Aid Lower Crime ,
MOJ,LAA,31/10/18,Civil Representation,LEGAL AID FUND,SARAH BRANSON,1578120:3000001911770014,27191.7, Legal Aid Civil Representation ,
MOJ,LAA,31/10/18,Lower Crime,LEGAL AID FUND,SARFO SOLICITORS,1576650:150753192,25303, Legal Aid Lower Crime ,
MOJ,LAA,31/10/18,Lower Crime,LEGAL AID FUND,SAUNDERS SOLICITORS LTD,1579861:150752782,31000, Legal Aid Lower Crime ,
MOJ,LAA,31/10/18,Higher Crime,LEGAL AID FUND,SEBASTIAN T WINNETT,1577502:150743562,32017.37, Legal Aid Higher Crime ,
MOJ,LAA,31/10/18,Higher Crime,LEGAL AID FUND,SHEARMAN BOWEN & CO,1580328:150726401,26341.14, Legal Aid Higher Crime ,
MOJ,LAA,31/10/18,Lower Crime,LEGAL AID FUND,SHELLEY & CO,1580356:150753191,43372, Legal Aid Lower Crime ,
MOJ,LAA,31/10/18,Higher Crime,LEGAL AID FUND,SILLS & BETTERIDGE LLP,1579259:150726526,75297.5, Legal Aid Higher Crime ,
MOJ,LAA,31/10/18,Lower Crime,LEGAL AID FUND,SMITH PARTNERSHIP,1577246:150752710,27600, Legal Aid Lower Crime ,
MOJ,LAA,31/10/18,Lower Crime,LEGAL AID FUND,SMITH PARTNERSHIP,1577249:150752988,25600, Legal Aid Lower Crime ,
MOJ,LAA,31/10/18,Lower Crime,LEGAL AID FUND,SONN MACMILLAN WALKER LTD,1579882:150752738,51500, Legal Aid Lower Crime ,
MOJ,LAA,31/10/18,Higher Crime,LEGAL AID FUND,SONN MACMILLAN WALKER LTD,1579882:150726965,37296.8, Legal Aid Higher Crime ,
MOJ,LAA,31/10/18,Legal Help,LEGAL AID FUND,SOUTHERNS SOLICITORS LTD,1577893:150752153,29791, Legal Aid Legal Help ,
MOJ,LAA,31/10/18,Legal Help,LEGAL AID FUND,SOUTHWARK LAW CENTRE,1575524:150752315,27099, Legal Aid Legal Help ,
MOJ,LAA,31/10/18,Lower Crime,LEGAL AID FUND,STEPHEN BURDON SOLICITORS,1575487:150752705,39100, Legal Aid Lower Crime ,
MOJ,LAA,31/10/18,Higher Crime,LEGAL AID FUND,STEPHEN LICKRISH & ASSOCIATES LTD,1577821:150776719,26464.44, Legal Aid Higher Crime ,
MOJ,LAA,31/10/18,Lower Crime,LEGAL AID FUND,STEPHEN RIMMER LLP,1580372:150752919,26000, Legal Aid Lower Crime ,
MOJ,LAA,31/10/18,Lower Crime,LEGAL AID FUND,STEVENS SOLICITORS,1577328:150752976,50800, Legal Aid Lower Crime ,
MOJ,LAA,31/10/18,Lower Crime,LEGAL AID FUND,STEVENS SOLICITORS,1577329:150752975,35300, Legal Aid Lower Crime ,
MOJ,LAA,31/10/18,Lower Crime,LEGAL AID FUND,STUART MILLER SOLICITORS LTD,1577885:150753272,74484, Legal Aid Lower Crime ,
MOJ,LAA,31/10/18,Legal Help,LEGAL AID FUND,SUTOVIC & HARTIGAN,1580443:150751705,38000, Legal Aid Legal Help ,
MOJ,LAA,31/10/18,Lower Crime,LEGAL AID FUND,SWAIN & CO SOLICITORS,1576661:150752933,110000, Legal Aid Lower Crime ,
MOJ,LAA,31/10/18,Legal Help,LEGAL AID FUND,SWAIN & CO SOLICITORS,1576662:150751774,39000, Legal Aid Legal Help ,
MOJ,LAA,31/10/18,Legal Help,LEGAL AID FUND,SWITALSKI'S SOLICITORS LTD,1578382:150752022,46326, Legal Aid Legal Help ,
MOJ,LAA,31/10/18,Lower Crime,LEGAL AID FUND,T S LAW LTD,1580312:150752775,25000, Legal Aid Lower Crime ,
MOJ,LAA,31/10/18,Lower Crime,LEGAL AID FUND,T V EDWARDS LLP,1577355:150752773,68000, Legal Aid Lower Crime ,
MOJ,LAA,31/10/18,Legal Help,LEGAL AID FUND,T V EDWARDS LLP,1577355:150751687,64900, Legal Aid Legal Help ,
MOJ,LAA,31/10/18,Lower Crime,LEGAL AID FUND,TANG BENTLEY & JACKSON LIMITED,1579358:150753957,29715, Legal Aid Lower Crime ,
MOJ,LAA,31/10/18,Lower Crime,LEGAL AID FUND,TAYLOR GOODCHILD LTD,1579170:150753708,27143, Legal Aid Lower Crime ,
MOJ,LAA,31/10/18,Higher Crime,LEGAL AID FUND,TAYLOR HALDANE BARLEX LLP,1578434:150777395,82367.31, Legal Aid Higher Crime ,
MOJ,LAA,31/10/18,Lower Crime,LEGAL AID FUND,TAYLOR HALDANE BARLEX LLP,1578434:150753920,29416, Legal Aid Lower Crime ,
MOJ,LAA,31/10/18,Lower Crime,LEGAL AID FUND,TAYLOR STREET SOLICITORS LLP,1578364:150752923,29000, Legal Aid Lower Crime ,
MOJ,LAA,31/10/18,Lower Crime,LEGAL AID FUND,TEESSIDE LAW LTD,1577530:150753837,29881, Legal Aid Lower Crime ,
MOJ,LAA,31/10/18,Legal Help,LEGAL AID FUND,THALIWAL & VEJA SOLICITORS,1576696:150752214,33578, Legal Aid Legal Help ,
MOJ,LAA,31/10/18,Lower Crime,LEGAL AID FUND,THE JOHNSON PARTNERSHIP,1579266:150752701,190000, Legal Aid Lower Crime ,
MOJ,LAA,31/10/18,Lower Crime,LEGAL AID FUND,THE JOHNSON PARTNERSHIP,1579264:150752703,49000, Legal Aid Lower Crime ,
MOJ,LAA,31/10/18,Lower Crime,LEGAL AID FUND,THE JOHNSON PARTNERSHIP,1579265:150752702,37500, Legal Aid Lower Crime ,
MOJ,LAA,31/10/18,Lower Crime,LEGAL AID FUND,THE JOHNSON PARTNERSHIP,1579196:150753010,33000, Legal Aid Lower Crime ,
MOJ,LAA,31/10/18,Lower Crime,LEGAL AID FUND,THE JOHNSON PARTNERSHIP,1577547:150753024,29000, Legal Aid Lower Crime ,
MOJ,LAA,31/10/18,Lower Crime,LEGAL AID FUND,THOMAS BOYD WHYTE,1579842:150753232,39723, Legal Aid Lower Crime ,
MOJ,LAA,31/10/18,Higher Crime,LEGAL AID FUND,THOMAS LORD,1578558:150743569,27012.96, Legal Aid Higher Crime ,
MOJ,LAA,31/10/18,Higher Crime,LEGAL AID FUND,TILSON SOLICITORS,1575692:150777192,105857.75, Legal Aid Higher Crime ,
MOJ,LAA,31/10/18,Higher Crime,LEGAL AID FUND,TIMOTHY W H RAGGATT QC,1576005:150744329,43855.42, Legal Aid Higher Crime ,
MOJ,LAA,31/10/18,Lower Crime,LEGAL AID FUND,TUCKERS SOLICITORS LLP,1577882:150752904,130300, Legal Aid Lower Crime ,
MOJ,LAA,31/10/18,Lower Crime,LEGAL AID FUND,TUCKERS SOLICITORS LLP,1577883:150752783,90000, Legal Aid Lower Crime ,
MOJ,LAA,31/10/18,Lower Crime,LEGAL AID FUND,TUCKERS SOLICITORS LLP,1578678:150752787,50500, Legal Aid Lower Crime ,
MOJ,LAA,31/10/18,Lower Crime,LEGAL AID FUND,TUCKERS SOLICITORS LLP,1577481:150753025,35000, Legal Aid Lower Crime ,
MOJ,LAA,31/10/18,Lower Crime,LEGAL AID FUND,TUCKERS SOLICITORS LLP,1579381:150753923,32114, Legal Aid Lower Crime ,
MOJ,LAA,31/10/18,Lower Crime,LEGAL AID FUND,TUCKERS SOLICITORS LLP,1577884:150752985,30000, Legal Aid Lower Crime ,
MOJ,LAA,31/10/18,Legal Help,LEGAL AID FUND,TURPIN & MILLER LLP,1576050:150752265,42497, Legal Aid Legal Help ,
MOJ,LAA,31/10/18,Lower Crime,LEGAL AID FUND,TYLER HOFFMAN LTD,1579365:150753950,27895, Legal Aid Lower Crime ,
MOJ,LAA,31/10/18,Lower Crime,LEGAL AID FUND,USMANI KING LTD,1576049:150753156,59311, Legal Aid Lower Crime ,
MOJ,LAA,31/10/18,Lower Crime,LEGAL AID FUND,VCW LAW,1578313:150752810,29100, Legal Aid Lower Crime ,
MOJ,LAA,31/10/18,Lower Crime,LEGAL AID FUND,VHS FLETCHERS,1579246:150752704,43200, Legal Aid Lower Crime ,
MOJ,LAA,31/10/18,Lower Crime,LEGAL AID FUND,VHS FLETCHERS,1578002:150753029,29100, Legal Aid Lower Crime ,
MOJ,LAA,31/10/18,Lower Crime,LEGAL AID FUND,VYMAN SOLICITORS LTD,1576635:150753496,35548, Legal Aid Lower Crime ,
MOJ,LAA,31/10/18,Lower Crime,LEGAL AID FUND,WAINWRIGHT & CUMMINS LLP,1577192:150752794,33000, Legal Aid Lower Crime ,
MOJ,LAA,31/10/18,Lower Crime,LEGAL AID FUND,WANNOPS LLP,1579672:150753801,44911, Legal Aid Lower Crime ,
MOJ,LAA,31/10/18,Lower Crime,LEGAL AID FUND,WATSON WOODHOUSE SOLICITORS LLP,1577877:150752811,50700, Legal Aid Lower Crime ,
MOJ,LAA,31/10/18,Legal Help,LEGAL AID FUND,WATSON WOODHOUSE SOLICITORS LLP,1577877:150751740,27100, Legal Aid Legal Help ,
MOJ,LAA,31/10/18,Lower Crime,LEGAL AID FUND,WELLS BURCOMBE LLP,1578683:150753151,70271, Legal Aid Lower Crime ,
MOJ,LAA,31/10/18,Lower Crime,LEGAL AID FUND,WELLS BURCOMBE LLP,1579638:150753733,56731, Legal Aid Lower Crime ,
MOJ,LAA,31/10/18,Higher Crime,LEGAL AID FUND,WELLS BURCOMBE LLP,1579638:150736236,37898.76, Legal Aid Higher Crime ,
MOJ,LAA,31/10/18,Lower Crime,LEGAL AID FUND,WESSEX SOLICITORS CHAMBERS,1579215:150753005,59000, Legal Aid Lower Crime ,
MOJ,LAA,31/10/18,Civil Representation,LEGAL AID FUND,WILKINSON WOODWARD.,1580361:3000002152440011,32364.59, Legal Aid Civil Representation ,
MOJ,LAA,31/10/18,Civil Representation,LEGAL AID FUND,WILLIAM BACHE & CO-IN LIQUIDATION,1577760:133174794,27820.18, Legal Aid Civil Representation ,
MOJ,LAA,31/10/18,Lower Crime,LEGAL AID FUND,WILLIAMSONS SOLICITORS LTD,1577830:150752864,41600, Legal Aid Lower Crime ,
MOJ,LAA,31/10/18,Lower Crime,LEGAL AID FUND,WILSON DEVONALD GRIFFITHS JOHN,1579811:150752681,45000, Legal Aid Lower Crime ,
MOJ,LAA,31/10/18,Legal Help,LEGAL AID FUND,WILSON SOLICITORS LLP,1580352:150752058,87827, Legal Aid Legal Help ,
MOJ,LAA,31/10/18,Legal Help,LEGAL AID FUND,WILSON SOLICITORS LLP,1576957:150752573,41148, Legal Aid Legal Help ,
MOJ,LAA,31/10/18,Legal Help,LEGAL AID FUND,WOLTON & CO,1577238:150751855,25480, Legal Aid Legal Help ,
MOJ,LAA,31/10/18,Lower Crime,LEGAL AID FUND,YARWOOD & STUBLEY,1577874:150752812,32200, Legal Aid Lower Crime ,
MOJ,LAA,31/10/18,Lower Crime,LEGAL AID FUND,YATES ARDERN,1577288:150753426,26253, Legal Aid Lower Crime ,
